{"text_format":"1","workbook":"xlsx","n_sheets":2,"sheets":["Relevés","Console"],"not_rendered":{"charts":3,"images":44,"macros":1,"external_links":0,"defined_names":2,"comments":0,"pivot_tables":0},"unopened":[],"bounds":{"document_bytes":16777216,"sheet_cells":100000,"rows_first":2000,"rows_last":500,"rows_between":2000,"halvings":0,"cell_chars":16384,"cell_head_chars":4096},"cells_cut":0,"cells_raw":0,"read":"whole","date_system":"1900"}

{"sheet":"Relevés","index":0,"n_rows":1450,"n_cols":49,"rows_kept":1450,"cut":false,"hidden":false,"merged":[[1,27,1,35]]}
["08:48:00",null,null,null,null,null,null,null,null,null,"J",null,null,"N",null,null,"W",null,null,null,null,null,null,null,null,null,null,null,null,null,null,null,null,null,null,null,null,"AG",null,null,"AK",null,null,null,null,null,null,"AX","AX"]
[null,"Pression mini",null,null,"Pression maxi",null,null,"Température ressentie",null,null,"Température mini",null,null,"Température maxi",null,null,"Vent en Km/h",null,null,null,null,null,null,null,null,null,null,"Humidité H%",null,null,null,null,null,null,null,null,null,"Pluie",null,null,"Temps de pluie",null,null,null,null,null,null,"Sonde Soleil"]
[null,"mini",null,"heure","maxi",null,"heure","mini",null,"heure","maxi",null,"heure","maxi",null,"heure","maxi",null,"Heure",null,"Moyenne",null,null,"Sens",null,"Sens",null,"Mini",null,"Heure",null,"Maxi",null,"Heure",null,"Moy","mm",null,"Heure",null,"AK",null,null,null,null,null,null,{"$f":"W1450/60/1440","v":0}]
[null,null,null,null,null,null,null,null,null,null,null,null,null,null,null,null,null,null,null,null,null,null,null,null,null,null,null,null,null,null,null,null,null,null,null,null,null,null,null,null,"0 à 7h",null,"7 à 12h",null," 12 à 19h",null,"19h à 24h"]
[null,{"$f":"MIN(H9:H1448)","v":1007.2},null,{"$f":"VLOOKUP($B5,$H$9:$Q$1448,10,0)","v":"06:58:00"},{"$f":"MAX(H9:H1448)","v":1013.1},null,{"$f":"VLOOKUP($E5,$H$9:$Q$1448,10,0)","v":"00:04:00"},{"$f":"MIN($D$9:$D$1448)","v":10},null,{"$f":"VLOOKUP($H5,$D$9:$Q$1448,14,0)","v":"00:00:00"},{"$f":"MIN($B$9:$B$1448)","v":10},null,{"$f":"VLOOKUP($K5,$B$9:$Q$1448,16,0)","v":"00:00:00"},{"$f":"MAX(B9:B1448)","v":11.4},null,{"$f":"VLOOKUP($N5,$B$9:$Q$1448,16,0)","v":"06:52:00"},{"$f":"MAX($E$9:$F$1448)","v":25.6},null,{"$f":"VLOOKUP($Q5,$F$9:$Q$1448,12,0)","v":"03:48:00"},null,{"$f":"AVERAGE(E9:E1448)","v":3.9803203661327284},null,null,null,null,"ONO",null,{"$f":"MIN(C9:C1448)","v":82},null,{"$f":"VLOOKUP($AB5,$C$9:$Q$1448,14,0)","v":10.7},null,{"$f":"MAX(C9:C1448)","v":90},null,{"$f":"VLOOKUP($AF5,$C$9:$Q$1448,15,0)","v":"00:00:00"},null,{"$f":"AVERAGE(C9:C1448)","v":85.922196796338667},{"$f":"K1450","v":0},null,{"$f":"(U1450/60)/1440","v":"00:00:00"},null,{"$f":"AO6+AQ6","v":"00:00:00"},null,null,null,{"$f":"AS6+AU6","v":"00:00:00"}]
[null,null,null,null,null,null,null,null,null,null,null,null,null,null,null,null,null,null,null,null,null,null,null,null,null,null,null,null,null,null,null,null,null,null,null,null,null,null,null,null,{"$f":"SUM(U9:U428)/60/1440","v":"00:00:00"},null,{"$f":"SUM(U429:U728)/60/1440","v":"00:00:00"},null,{"$f":"SUM(U729:U1148)/60/1440","v":"00:00:00"},null,{"$f":"SUM(U1148:U1448)/60/1440","v":"00:00:00"}]
[null,"5","6","8","9","10","11","13","14","15","16"]
[null,"T° Ext","H% Ext","Ressentie","Vent","Rafale","Sens","Pression","Lux","Pluie 1h","Jour","Semaine","Mois","Année","CH1","CH2","Heures","Date","Maxi","Graph","Pluie",null,"Soleil",null,null,null,null,null,null,null,null,null,null,null,null,null,"Fin",null,"Début",null,null,null,"Soleil"]
[null,10,90,10,5,5.4,110,1012.8,0,0,0,4.5999999999999996,14,78.5,8.1999999999999993,8.5,"00:00:00","20220311",null,null,null,null,null,null,null,"N",null,null,null,0,0]
[null,10,90,10,9,13,57,1012.8,0,0,0,4.5999999999999996,14,78.5,8.1999999999999993,8.5,"00:01:00",null,null,null,{"$f":"IF(J10>0,60,\"\")","v":""},null,null,null,null,"N",null,0,null,11,22]
[null,10,90,10,4.3,9.4,91,1012.9,0,0,0,4.5999999999999996,14,78.5,8.1999999999999993,8.5,"00:02:00",null,null,null,{"$f":"IF(J11>0,60,\"\")","v":""},null,null,null,null,"NNE",null,22.5,null,{"$f":"AB11+$AD$10","v":33.5},45,null,null,null,null,null,null,null,"Aide mémoire"]
[null,10,90,10,6.5,13,78,1012.8,0,0,0,4.5999999999999996,14,78.5,8.1999999999999993,8.6,"00:03:00",null,null,null,{"$f":"IF(J12>0,60,\"\")","v":""},null,null,null,null,"NE",null,45,null,56,67,null,null,null,null,null,"Pluie",null,"=SOMME(K9:K1448)"]
[null,10,90,10,1.4,5.4,64,1013.1,0,0,0,4.5999999999999996,14,78.5,8.1999999999999993,8.6,"00:04:00",null,null,null,"",null,null,null,null,"ENE",null,67.5,null,78.5,90,null,null,null,null,null,"Pluie",null,"=K1450"]
[null,10,90,10,3.6,9.4,113,1012.8,0,0,0,4.5999999999999996,14,78.5,8.1999999999999993,8.6,"00:05:00",null,null,null,"",null,null,null,null,"E",null,90,null,101,112,null,null,null,null,null,"Commentaires",null,null,null,"=SOMME(U9:U1448)"]
[null,10,90,10,1.1000000000000001,3.6,119,1012.8,0,0,0,4.5999999999999996,14,78.5,8.3000000000000007,8.6,"00:06:00",null,null,null,"",null,null,null,null,"ESE",null,112.5,null,123.5,135,null,null,null,null,null,"Soleil",null,"=SOMME(W9:W1448)"]
[null,10,90,10,3.2,7.2,97,1012.9,0,0,0,4.5999999999999996,14,78.5,8.3000000000000007,8.6,"00:07:00",null,null,null,"",null,null,null,null,"SSE",null,135,null,146,157,null,null,null,null,null,"Soleil",null,"=W1450/60/1440"]
[null,10,90,10,5.4,9.4,56,1012.7,0,0,0,4.5999999999999996,14,78.5,8.3000000000000007,8.6,"00:08:00",null,null,null,"",null,null,null,null,"SE",null,157.5,null,168.5,180]
[null,10.1,90,10.1,1.1000000000000001,1.8,102,1012.7,0,0,0,4.5999999999999996,14,78.5,8.3000000000000007,8.6,"00:09:00",null,null,null,"",null,null,null,null,"S",null,180,null,191,202]
[null,10.1,90,10.1,11.2,16.600000000000001,116,1012.8,0,0,0,4.5999999999999996,14,78.5,8.3000000000000007,8.6,"00:10:00",null,null,null,"",null,null,null,null,"SSO",null,202.5,null,213.5,225]
[null,10.1,90,10.1,3.2,5.4,101,1012.5,0,0,0,4.5999999999999996,14,78.5,8.4,8.6999999999999993,"00:11:00",null,null,null,"",null,null,null,null,"SO",null,225,null,236,247]
[null,10.1,90,10.1,7.6,11.2,79,1012.7,0,0,0,4.5999999999999996,14,78.5,8.4,8.6999999999999993,"00:12:00",null,null,null,"",null,null,null,null,"OSO",null,247.5,null,258.5,270]
[null,10.199999999999999,90,10.199999999999999,1.1000000000000001,3.6,93,1012.8,0,0,0,4.5999999999999996,14,78.5,8.4,8.6999999999999993,"00:13:00",null,null,null,"",null,null,null,null,"O",null,270,null,281,292]
[null,10.199999999999999,90,10.199999999999999,4.7,7.2,118,1012.8,0,0,0,4.5999999999999996,14,78.5,8.4,8.6999999999999993,"00:14:00",null,null,null,"",null,null,null,null,"ONO",null,292.5,null,303.5,315]
[null,10.199999999999999,90,10.199999999999999,2.5,3.6,99,1012.7,0,0,0,4.5999999999999996,14,78.5,8.5,8.6999999999999993,"00:15:00",null,null,null,"",null,null,null,null,"NO",null,315,null,326,337]
[null,10.199999999999999,89,10.199999999999999,5,9.4,104,1012.7,0,0,0,4.5999999999999996,14,78.5,8.5,8.8000000000000007,"00:16:00",null,null,null,"",null,null,null,null,"NNO",null,337.5,null,348.5,349]
[null,10.3,89,10.3,4,9.4,75,1012.7,0,0,0,4.5999999999999996,14,78.5,8.5,8.8000000000000007,"00:17:00",null,null,null,"",null,null,null,null,"N",null,349,null,360]
[null,10.3,89,10.3,5.4,7.2,61,1012.7,0,0,0,4.5999999999999996,14,78.5,8.5,8.9,"00:18:00",null,null,null,""]
[null,10.3,89,10.3,1.8,3.6,132,1012.5,0,0,0,4.5999999999999996,14,78.5,8.6,8.9,"00:19:00",null,null,null,"",null,null,null,null,null,null,null,null,{"$f":"INDEX($Z$9:$Z$26,IF(ISNA(MATCH($AD$30,$AD$9:$AD$26,0)),MATCH($AD$30,$AD$9:$AD$26,1)+1,MATCH($AD$30,$AD$9:$AD$26,0)),1)","v":"ESE"}]
[null,10.3,89,10.3,2.9,5.4,122,1012.7,0,0,0,4.5999999999999996,14,78.5,8.6,8.9,"00:20:00",null,null,null,"",null,null,null,null,null,null,{"$f":"SUM(AB32:AB47)","v":1},null,{"$f":"MAX(AB32:AB47)","v":0.47619047619047616},null,{"$f":"SUM(AF32:AF47)","v":21}]
[null,10.3,89,10.3,4,5.4,121,1012.5,0,0,0,4.5999999999999996,14,78.5,8.6,8.9,"00:21:00",null,null,null,"",null,null,null,null,null,null,null,null,{"$f":"VLOOKUP(AD29,AB32:AD47,AD31,0)","v":112}]
[null,10.3,89,10.3,5,9.4,94,1012.7,0,0,0,4.5999999999999996,14,78.5,8.6999999999999993,9,"00:22:00",null,null,null,"",null,null,null,null,null,null,null,null,3]
[null,10.3,89,10.3,3.2,5.4,96,1012.8,0,0,0,4.5999999999999996,14,78.5,8.6999999999999993,9,"00:23:00",null,null,null,"",null,null,null,null,null,null,{"$f":"AF32/$AF$29","v":0},null,0,null,{"$f":"COUNTIF($G$9:$G$1448,AD32)","v":0}]
[null,10.3,89,10.3,2.2000000000000002,3.6,63,1012.7,0,0,0,4.5999999999999996,14,78.5,8.6999999999999993,9,"00:24:00",null,null,null,"",null,null,null,null,null,null,{"$f":"AF33/$AF$29","v":0},null,22,null,{"$f":"COUNTIF($G$9:$G$1448,AD33)","v":0}]
[null,10.3,89,10.3,6.1,7.2,119,1012.4,0,0,0,4.5999999999999996,14,78.5,8.6999999999999993,9,"00:25:00",null,null,null,"",null,null,null,null,null,null,{"$f":"AF34/$AF$29","v":0},null,45,null,0]
[null,10.3,89,10.3,1.4,5.4,88,1012.6,0,0,0,4.5999999999999996,14,78.5,8.6999999999999993,9,"00:26:00",null,null,null,"",null,null,null,null,null,null,0.14285714285714285,null,67,null,{"$f":"COUNTIF($G$9:$G$1448,AD35)","v":3}]
[null,10.3,89,10.3,3.2,5.4,67,1012.5,0,0,0,4.5999999999999996,14,78.5,8.8000000000000007,9.1,"00:27:00",null,null,null,"",null,null,null,null,null,null,0.23809523809523808,null,90,null,5]
[null,10.3,89,10.3,9,14.8,91,1012.6,0,0,0,4.5999999999999996,14,78.5,8.8000000000000007,9.1,"00:28:00",null,null,null,"",null,null,null,null,null,null,0.47619047619047616,null,112,null,10]
[null,10.4,89,10.4,1.4,1.8,102,1012.7,0,0,0,4.5999999999999996,14,78.5,8.8000000000000007,9.1,"00:29:00",null,null,null,"",null,null,null,null,null,null,4.7619047619047616E-2,null,135,null,1]
[null,10.4,89,10.4,4.7,9.4,91,1012.6,0,0,0,4.5999999999999996,14,78.5,8.8000000000000007,9.1,"00:30:00",null,null,null,"",null,null,null,null,null,null,4.7619047619047616E-2,null,157,null,1]
[null,10.4,89,10.4,6.8,11.2,135,1012.5,0,0,0,4.5999999999999996,14,78.5,8.8000000000000007,9.1,"00:31:00",null,null,null,"",null,null,null,null,null,null,4.7619047619047616E-2,null,180,null,1]
[null,10.4,89,10.4,4,9.4,124,1012.5,0,0,0,4.5999999999999996,14,78.5,8.8000000000000007,9.1,"00:32:00",null,null,null,"",null,null,null,null,null,null,0,null,202,null,0]
[null,10.4,89,10.4,1.8,5.4,89,1012.5,0,0,0,4.5999999999999996,14,78.5,8.9,9.1999999999999993,"00:33:00",null,null,null,"",null,null,null,null,null,null,0,null,225,null,0]
[null,10.4,89,10.4,6.1,13,98,1012.4,0,0,0,4.5999999999999996,14,78.5,8.9,9.1999999999999993,"00:34:00",null,null,null,"",null,null,null,null,null,null,0,null,247,null,0]
[null,10.4,89,10.4,2.9,5.4,113,1012.5,0,0,0,4.5999999999999996,14,78.5,9,9.1999999999999993,"00:35:00",null,null,null,"",null,null,null,null,null,null,0,null,270,null,0]
[null,10.4,89,10.4,3.6,7.2,96,1012.4,0,0,0,4.5999999999999996,14,78.5,9,9.1999999999999993,"00:36:00",null,null,null,"",null,null,null,null,null,null,0,null,292,null,0]
[null,10.4,89,10.4,3.6,5.4,104,1012.3,0,0,0,4.5999999999999996,14,78.5,9,9.1999999999999993,"00:37:00",null,null,null,"",null,null,null,null,null,null,0,null,315,null,0]
[null,10.4,89,10.4,5.4,11.2,161,1012.4,0,0,0,4.5999999999999996,14,78.5,9,9.3000000000000007,"00:38:00",null,null,null,"",null,null,null,null,null,null,0,null,337,null,0]
[null,10.5,89,10.5,6.5,9.4,56,1012.3,0,0,0,4.5999999999999996,14,78.5,9,9.3000000000000007,"00:39:00",null,null,null,""]
[null,10.4,89,10.4,4.3,7.2,110,1012.3,0,0,0,4.5999999999999996,14,78.5,9,9.3000000000000007,"00:40:00",null,null,null,""]
[null,10.4,89,10.4,2.2000000000000002,5.4,74,1012.3,0,0,0,4.5999999999999996,14,78.5,9.1,9.3000000000000007,"00:41:00",null,null,null,""]
[null,10.4,89,10.4,4.7,7.2,70,1012.3,0,0,0,4.5999999999999996,14,78.5,9.1,9.3000000000000007,"00:42:00",null,null,null,""]
[null,10.4,89,10.4,2.9,7.2,97,1012.5,0,0,0,4.5999999999999996,14,78.5,9.1,9.3000000000000007,"00:43:00",null,null,null,""]
[null,10.4,89,10.4,7.9,13,111,1012.4,0,0,0,4.5999999999999996,14,78.5,9.1,9.3000000000000007,"00:44:00",null,null,null,""]
[null,10.4,89,10.4,1.1000000000000001,1.8,39,1012,0,0,0,4.5999999999999996,14,78.5,9.1,9.3000000000000007,"00:45:00",null,null,null,""]
[null,10.4,89,10.4,6.5,11.2,101,1012.1,0,0,0,4.5999999999999996,14,78.5,9.1,9.4,"00:46:00",null,null,null,""]
[null,10.4,89,10.4,1.1000000000000001,3.6,126,1012.2,0,0,0,4.5999999999999996,14,78.5,9.1,9.4,"00:47:00",null,null,null,""]
[null,10.4,89,10.4,9,13,102,1012.2,0,0,0,4.5999999999999996,14,78.5,9.1,9.3000000000000007,"00:48:00",null,null,null,""]
[null,10.4,89,10.4,2.5,3.6,85,1012.2,0,0,0,4.5999999999999996,14,78.5,9.1,9.3000000000000007,"00:49:00",null,null,null,""]
[null,10.4,89,10.4,2.9,3.6,105,1012.2,0,0,0,4.5999999999999996,14,78.5,9.1,9.3000000000000007,"00:50:00",null,null,null,""]
[null,10.4,89,10.4,9.4,11.2,90,1012.2,0,0,0,4.5999999999999996,14,78.5,9.1,9.4,"00:51:00",null,null,null,""]
[null,10.4,89,10.4,2.2000000000000002,5.4,63,1012.2,0,0,0,4.5999999999999996,14,78.5,9.1,9.3000000000000007,"00:52:00",null,null,null,""]
[null,10.4,89,10.4,4,7.2,91,1012.2,0,0,0,4.5999999999999996,14,78.5,9.1,9.3000000000000007,"00:53:00",null,null,null,""]
[null,10.4,89,10.4,2.5,5.4,97,1012.2,0,0,0,4.5999999999999996,14,78.5,9.1,9.4,"00:54:00",null,null,null,""]
[null,10.4,89,10.4,8.6,11.2,87,1012,0,0,0,4.5999999999999996,14,78.5,9.1,9.3000000000000007,"00:55:00",null,null,null,""]
[null,10.5,88,10.5,4,9.4,140,1012,0,0,0,4.5999999999999996,14,78.5,9.1,9.3000000000000007,"00:56:00",null,null,null,""]
[null,10.5,88,10.5,9.4,16.600000000000001,73,1011.8,0,0,0,4.5999999999999996,14,78.5,9.1,9.4,"00:57:00",null,null,null,""]
[null,10.5,89,10.5,7.9,11.2,101,1011.9,0,0,0,4.5999999999999996,14,78.5,9.1,9.4,"00:58:00",null,null,null,""]
[null,10.5,88,10.5,6.5,11.2,123,1011.9,0,0,0,4.5999999999999996,14,78.5,9.1,9.4,"00:59:00",null,null,null,""]
[null,10.5,88,10.5,5.4,7.2,43,1011.7,0,0,0,4.5999999999999996,14,78.5,9.1,9.4,"01:00:00",null,null,null,""]
[null,10.5,88,10.5,9.6999999999999993,13,91,1012,0,0,0,4.5999999999999996,14,78.5,9.1,9.4,"01:01:00",null,null,null,""]
[null,10.5,88,10.5,4,5.4,99,1011.7,0,0,0,4.5999999999999996,14,78.5,9.1,9.4,"01:02:00",null,null,null,""]
[null,10.5,88,10.5,7.2,11.2,120,1011.9,0,0,0,4.5999999999999996,14,78.5,9.1,9.4,"01:03:00",null,null,null,""]
[null,10.6,88,10.6,1.4,3.6,112,1011.8,0,0,0,4.5999999999999996,14,78.5,9.1,9.4,"01:04:00",null,null,null,""]
[null,10.6,88,10.6,3.6,5.4,105,1011.6,0,0,0,4.5999999999999996,14,78.5,9.1,9.5,"01:05:00",null,null,null,""]
[null,10.6,88,10.6,6.1,9.4,71,1011.6,0,0,0,4.5999999999999996,14,78.5,9.1999999999999993,9.5,"01:06:00",null,null,null,{"$f":"IF(J75>0,60,\"\")","v":""}]
[null,10.6,88,10.6,5.4,11.2,94,1011.7,0,0,0,4.5999999999999996,14,78.5,9.1999999999999993,9.5,"01:07:00",null,null,null,""]
[null,10.6,88,10.6,6.5,11.2,95,1011.5,0,0,0,4.5999999999999996,14,78.5,9.1999999999999993,9.5,"01:08:00",null,null,null,""]
[null,10.6,88,10.6,2.9,5.4,92,1011.5,0,0,0,4.5999999999999996,14,78.5,9.1,9.5,"01:09:00",null,null,null,""]
[null,10.6,88,10.6,2.9,5.4,72,1011.5,0,0,0,4.5999999999999996,14,78.5,9.1999999999999993,9.5,"01:10:00",null,null,null,""]
[null,10.6,88,10.6,2.9,9.4,97,1011.6,0,0,0,4.5999999999999996,14,78.5,9.1999999999999993,9.5,"01:11:00",null,null,null,""]
[null,10.6,88,10.6,2.9,5.4,73,1011.3,0,0,0,4.5999999999999996,14,78.5,9.1999999999999993,9.5,"01:12:00",null,null,null,""]
[null,10.6,88,10.6,2.9,7.2,112,1011.3,0,0,0,4.5999999999999996,14,78.5,9.1999999999999993,9.5,"01:13:00",null,null,null,""]
[null,10.6,88,10.6,4.7,13,107,1011.2,0,0,0,4.5999999999999996,14,78.5,9.1999999999999993,9.5,"01:14:00",null,null,null,""]
[null,10.6,88,10.6,3.6,7.2,76,1011.3,0,0,0,4.5999999999999996,14,78.5,9.1999999999999993,9.6,"01:15:00",null,null,null,""]
[null,10.6,88,10.6,7.9,13,106,1011.3,0,0,0,4.5999999999999996,14,78.5,9.1999999999999993,9.6,"01:16:00",null,null,null,""]
[null,10.6,88,10.6,4.3,9.4,66,1011.3,0,0,0,4.5999999999999996,14,78.5,9.1999999999999993,9.6,"01:17:00",null,null,null,""]
[null,10.6,88,10.6,4.7,9.4,71,1011.2,0,0,0,4.5999999999999996,14,78.5,9.1999999999999993,9.6,"01:18:00",null,null,null,""]
[null,10.6,88,10.6,5.8,7.2,91,1011.3,0,0,0,4.5999999999999996,14,78.5,9.3000000000000007,9.6,"01:19:00",null,null,null,""]
[null,10.7,87,10.7,7.6,13,125,1011.2,0,0,0,4.5999999999999996,14,78.5,9.3000000000000007,9.6,"01:20:00",null,null,null,""]
[null,10.7,87,10.7,2.2000000000000002,3.6,156,1011.1,0,0,0,4.5999999999999996,14,78.5,9.3000000000000007,9.6,"01:21:00",null,null,null,""]
[null,10.7,87,10.7,4.7,14.8,89,1011.4,0,0,0,4.5999999999999996,14,78.5,9.3000000000000007,9.6,"01:22:00",null,null,null,""]
[null,10.7,87,10.7,3.6,7.2,114,1011.2,0,0,0,4.5999999999999996,14,78.5,9.3000000000000007,9.6,"01:23:00",null,null,null,""]
[null,10.7,87,10.7,11.2,16.600000000000001,121,1011.2,0,0,0,4.5999999999999996,14,78.5,9.3000000000000007,9.6,"01:24:00",null,null,null,""]
[null,10.7,87,10.7,4.3,7.2,133,1011.1,0,0,0,4.5999999999999996,14,78.5,9.3000000000000007,9.6,"01:25:00",null,null,null,""]
[null,10.7,87,10.7,2.9,5.4,72,1011,0,0,0,4.5999999999999996,14,78.5,9.4,9.6,"01:26:00",null,null,null,""]
[null,10.7,87,10.7,2.9,5.4,36,1011,0,0,0,4.5999999999999996,14,78.5,9.4,9.6,"01:27:00",null,null,null,""]
[null,10.7,87,10.7,4.7,7.2,76,1011.2,0,0,0,4.5999999999999996,14,78.5,9.4,9.6999999999999993,"01:28:00",null,null,null,""]
[null,10.7,87,10.7,0.4,1.8,133,1011.2,0,0,0,4.5999999999999996,14,78.5,9.4,9.6999999999999993,"01:29:00",null,null,null,""]
[null,10.7,87,10.7,4,7.2,112,1011.4,0,0,0,4.5999999999999996,14,78.5,9.4,9.6999999999999993,"01:30:00",null,null,null,""]
[null,10.7,87,10.7,1.1000000000000001,3.6,95,1011.4,0,0,0,4.5999999999999996,14,78.5,9.4,9.6999999999999993,"01:31:00",null,null,null,""]
[null,10.7,87,10.7,4,5.4,79,1011.2,0,0,0,4.5999999999999996,14,78.5,9.4,9.6999999999999993,"01:32:00",null,null,null,""]
[null,10.7,87,10.7,6.5,13,69,1011.3,0,0,0,4.5999999999999996,14,78.5,9.5,9.6999999999999993,"01:33:00",null,null,null,""]
[null,10.7,87,10.7,0.4,1.8,125,1011.6,0,0,0,4.5999999999999996,14,78.5,9.5,9.6999999999999993,"01:34:00",null,null,null,""]
[null,10.7,87,10.7,4.7,9.4,65,1011.5,0,0,0,4.5999999999999996,14,78.5,9.5,9.6999999999999993,"01:35:00",null,null,null,""]
[null,10.7,87,10.7,1.8,5.4,94,1011.4,0,0,0,4.5999999999999996,14,78.5,9.6,9.6999999999999993,"01:36:00",null,null,null,""]
[null,10.7,87,10.7,6.8,9.4,92,1011.4,0,0,0,4.5999999999999996,14,78.5,9.6,9.8000000000000007,"01:37:00",null,null,null,""]
[null,10.7,87,10.7,3.6,9.4,48,1011.3,0,0,0,4.5999999999999996,14,78.5,9.6,9.8000000000000007,"01:38:00",null,null,null,""]
[null,10.7,87,10.7,1.4,5.4,94,1011.4,0,0,0,4.5999999999999996,14,78.5,9.6,9.8000000000000007,"01:39:00",null,null,null,""]
[null,10.7,87,10.7,1.1000000000000001,3.6,83,1011.3,0,0,0,4.5999999999999996,14,78.5,9.6999999999999993,9.8000000000000007,"01:40:00",null,null,null,""]
[null,10.7,87,10.7,4.3,9.4,122,1011.2,0,0,0,4.5999999999999996,14,78.5,9.6999999999999993,9.8000000000000007,"01:41:00",null,null,null,""]
[null,10.7,87,10.7,6.1,9.4,109,1011.3,0,0,0,4.5999999999999996,14,78.5,9.6999999999999993,9.9,"01:42:00",null,null,null,""]
[null,10.7,87,10.7,1.8,3.6,93,1011.1,0,0,0,4.5999999999999996,14,78.5,9.6999999999999993,9.9,"01:43:00",null,null,null,""]
[null,10.7,87,10.7,3.2,11.2,180,1011.4,0,0,0,4.5999999999999996,14,78.5,9.6999999999999993,9.9,"01:44:00",null,null,null,""]
[null,10.7,87,10.7,1.1000000000000001,3.6,91,1011.2,0,0,0,4.5999999999999996,14,78.5,9.6999999999999993,9.9,"01:45:00",null,null,null,""]
[null,10.7,87,10.7,1.1000000000000001,1.8,75,1011.3,0,0,0,4.5999999999999996,14,78.5,9.6999999999999993,9.9,"01:46:00",null,null,null,""]
[null,10.7,87,10.7,3.2,7.2,109,1011.4,0,0,0,4.5999999999999996,14,78.5,9.6999999999999993,9.9,"01:47:00",null,null,null,""]
[null,10.7,87,10.7,0.7,1.8,83,1011.3,0,0,0,4.5999999999999996,14,78.5,9.8000000000000007,9.9,"01:48:00",null,null,null,""]
[null,10.7,87,10.7,2.2000000000000002,3.6,120,1011.1,0,0,0,4.5999999999999996,14,78.5,9.8000000000000007,9.9,"01:49:00",null,null,null,""]
[null,10.7,87,10.7,0.4,1.8,74,1011.3,0,0,0,4.5999999999999996,14,78.5,9.8000000000000007,9.9,"01:50:00",null,null,null,""]
[null,10.7,87,10.7,2.2000000000000002,3.6,111,1011.1,0,0,0,4.5999999999999996,14,78.5,9.8000000000000007,9.9,"01:51:00",null,null,null,""]
[null,10.7,87,10.7,2.5,3.6,100,1011.2,0,0,0,4.5999999999999996,14,78.5,9.8000000000000007,9.9,"01:52:00",null,null,null,""]
[null,10.7,87,10.7,1.8,5.4,114,1011.2,0,0,0,4.5999999999999996,14,78.5,9.8000000000000007,9.9,"01:53:00",null,null,null,""]
[null,10.7,87,10.7,5,9.4,47,1011.1,0,0,0,4.5999999999999996,14,78.5,9.8000000000000007,9.9,"01:54:00",null,null,null,""]
[null,10.7,87,10.7,4.7,9.4,108,1011,0,0,0,4.5999999999999996,14,78.5,9.8000000000000007,9.9,"01:55:00",null,null,null,""]
[null,10.7,87,10.7,2.9,3.6,99,1011.3,0,0,0,4.5999999999999996,14,78.5,9.8000000000000007,9.9,"01:56:00",null,null,null,""]
[null,10.7,87,10.7,4.3,7.2,42,1011.2,0,0,0,4.5999999999999996,14,78.5,9.9,9.9,"01:57:00",null,null,null,""]
[null,10.7,87,10.7,0.7,1.8,107,1011.3,0,0,0,4.5999999999999996,14,78.5,9.9,9.9,"01:58:00",null,null,null,""]
[null,10.7,87,10.7,2.9,5.4,65,1011.1,0,0,0,4.5999999999999996,14,78.5,9.9,10,"01:59:00",null,null,null,""]
[null,10.7,87,10.7,4,9.4,106,1011,0,0,0,4.5999999999999996,14,78.5,9.9,10,"02:00:00",null,null,null,""]
[null,10.7,87,10.7,3.2,3.6,127,1011,0,0,0,4.5999999999999996,14,78.5,9.9,10,"02:01:00",null,null,null,""]
[null,10.7,87,10.7,4.7,7.2,104,1011.1,0,0,0,4.5999999999999996,14,78.5,9.9,10,"02:02:00",null,null,null,""]
[null,10.7,87,10.7,1.1000000000000001,1.8,154,1011.4,0,0,0,4.5999999999999996,14,78.5,9.9,10,"02:03:00",null,null,null,""]
[null,10.7,87,10.7,3.6,5.4,105,1011,0,0,0,4.5999999999999996,14,78.5,9.9,10,"02:04:00",null,null,null,""]
[null,10.7,87,10.7,1.8,3.6,127,1010.8,0,0,0,4.5999999999999996,14,78.5,9.9,10,"02:05:00",null,null,null,""]
[null,10.7,87,10.7,2.2000000000000002,3.6,54,1010.9,0,0,0,4.5999999999999996,14,78.5,9.9,10,"02:06:00",null,null,null,""]
[null,10.7,87,10.7,1.8,5.4,64,1010.8,0,0,0,4.5999999999999996,14,78.5,9.9,10,"02:07:00",null,null,null,""]
[null,10.7,87,10.7,5.4,7.2,100,1010.7,0,0,0,4.5999999999999996,14,78.5,9.9,10,"02:08:00",null,null,null,""]
[null,10.7,87,10.7,6.1,7.2,92,1010.9,0,0,0,4.5999999999999996,14,78.5,10,10,"02:09:00",null,null,null,""]
[null,10.7,87,10.7,7.2,13,104,1010.8,0,0,0,4.5999999999999996,14,78.5,9.9,10,"02:10:00",null,null,null,{"$f":"IF(J139>0,60,\"\")","v":""}]
[null,10.7,87,10.7,6.1,9.4,103,1010.9,0,0,0,4.5999999999999996,14,78.5,9.9,10,"02:11:00",null,null,null,""]
[null,10.7,87,10.7,8.3000000000000007,13,44,1010.8,0,0,0,4.5999999999999996,14,78.5,9.9,10,"02:12:00",null,null,null,""]
[null,10.7,87,10.7,4.7,9.4,110,1010.5,0,0,0,4.5999999999999996,14,78.5,10,10.1,"02:13:00",null,null,null,""]
[null,10.7,87,10.7,4.3,7.2,129,1010.7,0,0,0,4.5999999999999996,14,78.5,9.9,10.1,"02:14:00",null,null,null,""]
[null,10.7,87,10.7,1.4,5.4,28,1010.8,0,0,0,4.5999999999999996,14,78.5,10,10.1,"02:15:00",null,null,null,""]
[null,10.7,87,10.7,4.7,11.2,101,1010.7,0,0,0,4.5999999999999996,14,78.5,10,10.1,"02:16:00",null,null,null,""]
[null,10.7,87,10.7,2.9,3.6,79,1010.7,0,0,0,4.5999999999999996,14,78.5,10,10.1,"02:17:00",null,null,null,""]
[null,10.7,87,10.7,4.3,7.2,102,1010.7,0,0,0,4.5999999999999996,14,78.5,10,10.1,"02:18:00",null,null,null,""]
[null,10.7,87,10.7,2.5,5.4,116,1010.6,0,0,0,4.5999999999999996,14,78.5,10,10.1,"02:19:00",null,null,null,""]
[null,10.7,87,10.7,2.2000000000000002,3.6,82,1010.5,0,0,0,4.5999999999999996,14,78.5,10,10.1,"02:20:00",null,null,null,""]
[null,10.7,87,10.7,2.5,3.6,58,1010.4,0,0,0,4.5999999999999996,14,78.5,10,10.1,"02:21:00",null,null,null,""]
[null,10.7,87,10.7,2.5,3.6,123,1010.5,0,0,0,4.5999999999999996,14,78.5,10,10.1,"02:22:00",null,null,null,""]
[null,10.7,87,10.7,0.7,1.8,70,1010.7,0,0,0,4.5999999999999996,14,78.5,10,10.1,"02:23:00",null,null,null,""]
[null,10.7,87,10.7,4,7.2,86,1010.5,0,0,0,4.5999999999999996,14,78.5,10,10.1,"02:24:00",null,null,null,""]
[null,10.7,87,10.7,5.4,11.2,83,1010.7,0,0,0,4.5999999999999996,14,78.5,10,10.1,"02:25:00",null,null,null,""]
[null,10.7,87,10.7,3.6,5.4,66,1010.6,0,0,0,4.5999999999999996,14,78.5,10,10.1,"02:26:00",null,null,null,""]
[null,10.7,87,10.7,2.5,5.4,101,1010.5,0,0,0,4.5999999999999996,14,78.5,10,10.1,"02:27:00",null,null,null,""]
[null,10.7,87,10.7,11.9,16.600000000000001,55,1010.4,0,0,0,4.5999999999999996,14,78.5,9.9,10.1,"02:28:00",null,null,null,""]
[null,10.7,87,10.7,2.2000000000000002,3.6,104,1010.3,0,0,0,4.5999999999999996,14,78.5,10,10.1,"02:29:00",null,null,null,""]
[null,10.7,87,10.7,3.2,9.4,98,1010.5,0,0,0,4.5999999999999996,14,78.5,9.9,10.1,"02:30:00",null,null,null,""]
[null,10.7,87,10.7,5,7.2,94,1010.2,0,0,0,4.5999999999999996,14,78.5,9.9,10.1,"02:31:00",null,null,null,""]
[null,10.7,87,10.7,3.6,3.6,53,1010.3,0,0,0,4.5999999999999996,14,78.5,9.9,10.1,"02:32:00",null,null,null,""]
[null,10.7,87,10.7,4.3,5.4,91,1010.4,0,0,0,4.5999999999999996,14,78.5,9.9,10,"02:33:00",null,null,null,""]
[null,10.7,87,10.7,2.9,3.6,90,1010.3,0,0,0,4.5999999999999996,14,78.5,9.9,10,"02:34:00",null,null,null,""]
[null,10.7,87,10.7,3.2,7.2,136,1010.3,0,0,0,4.5999999999999996,14,78.5,9.9,10,"02:35:00",null,null,null,""]
[null,10.8,87,10.8,1.1000000000000001,1.8,111,1010,0,0,0,4.5999999999999996,14,78.5,9.9,10,"02:36:00",null,null,null,""]
[null,10.8,87,10.8,4,7.2,112,1010.2,0,0,0,4.5999999999999996,14,78.5,9.8000000000000007,10,"02:37:00",null,null,null,""]
[null,10.8,87,10.8,2.5,3.6,103,1010.3,0,0,0,4.5999999999999996,14,78.5,9.8000000000000007,10,"02:38:00",null,null,null,""]
[null,10.8,87,10.8,1.4,3.6,84,1010.3,0,0,0,4.5999999999999996,14,78.5,9.8000000000000007,10,"02:39:00",null,null,null,""]
[null,10.8,87,10.8,7.2,13,75,1010.1,0,0,0,4.5999999999999996,14,78.5,9.9,10,"02:40:00",null,null,null,""]
[null,10.8,86,10.8,4,5.4,95,1010.2,0,0,0,4.5999999999999996,14,78.5,9.9,10,"02:41:00",null,null,null,""]
[null,10.8,86,10.8,5,7.2,2,1009.9,0,0,0,4.5999999999999996,14,78.5,9.9,10,"02:42:00",null,null,null,""]
[null,10.8,86,10.8,3.6,13,98,1009.9,0,0,0,4.5999999999999996,14,78.5,9.9,10,"02:43:00",null,null,null,""]
[null,10.8,86,10.8,5.4,7.2,104,1009.9,0,0,0,4.5999999999999996,14,78.5,9.9,10,"02:44:00",null,null,null,""]
[null,10.9,86,10.9,3.2,7.2,94,1010,0,0,0,4.5999999999999996,14,78.5,9.9,10,"02:45:00",null,null,null,""]
[null,10.9,86,10.9,1.4,5.4,95,1010,0,0,0,4.5999999999999996,14,78.5,9.9,10,"02:46:00",null,null,null,""]
[null,10.9,86,10.9,8.6,11.2,82,1010.3,0,0,0,4.5999999999999996,14,78.5,9.9,10.1,"02:47:00",null,null,null,""]
[null,10.9,86,10.9,4,7.2,127,1010,0,0,0,4.5999999999999996,14,78.5,9.9,10.1,"02:48:00",null,null,null,""]
[null,10.9,86,10.9,1.8,5.4,88,1010.1,0,0,0,4.5999999999999996,14,78.5,9.9,10.1,"02:49:00",null,null,null,""]
[null,10.9,86,10.9,3.2,5.4,98,1010,0,0,0,4.5999999999999996,14,78.5,9.9,10.1,"02:50:00",null,null,null,""]
[null,10.9,86,10.9,3.6,5.4,59,1010,0,0,0,4.5999999999999996,14,78.5,9.9,10.1,"02:51:00",null,null,null,""]
[null,10.9,86,10.9,3.6,5.4,97,1009.9,0,0,0,4.5999999999999996,14,78.5,9.9,10.1,"02:52:00",null,null,null,""]
[null,10.8,86,10.8,0.7,3.6,83,1010,0,0,0,4.5999999999999996,14,78.5,10,10.1,"02:53:00",null,null,null,""]
[null,10.8,86,10.8,5.4,7.2,89,1010.2,0,0,0,4.5999999999999996,14,78.5,10,10.1,"02:54:00",null,null,null,""]
[null,10.8,86,10.8,5.8,9.4,75,1010,0,0,0,4.5999999999999996,14,78.5,10,10.1,"02:55:00",null,null,null,""]
[null,10.8,87,10.8,5.8,11.2,27,1009.9,0,0,0,4.5999999999999996,14,78.5,10,10.1,"02:56:00",null,null,null,""]
[null,10.8,87,10.8,5.8,13,139,1009.8,0,0,0,4.5999999999999996,14,78.5,10,10.1,"02:57:00",null,null,null,""]
[null,10.8,87,10.8,3.6,7.2,74,1009.7,0,0,0,4.5999999999999996,14,78.5,10,10.1,"02:58:00",null,null,null,""]
[null,10.8,87,10.8,5.4,11.2,102,1009.8,0,0,0,4.5999999999999996,14,78.5,10,10.199999999999999,"02:59:00",null,null,null,""]
[null,10.8,86,10.8,6.5,9.4,97,1009.9,0,0,0,4.5999999999999996,14,78.5,10,10.199999999999999,"03:00:00",null,null,null,""]
[null,10.8,86,10.8,5,7.2,94,1009.9,0,0,0,4.5999999999999996,14,78.5,10,10.199999999999999,"03:01:00",null,null,null,""]
[null,10.9,86,10.9,5.4,9.4,67,1009.6,0,0,0,4.5999999999999996,14,78.5,10,10.199999999999999,"03:02:00",null,null,null,""]
[null,10.9,86,10.9,6.5,11.2,92,1010,0,0,0,4.5999999999999996,14,78.5,10,10.199999999999999,"03:03:00",null,null,null,""]
[null,10.9,86,10.9,2.5,5.4,101,1009.8,0,0,0,4.5999999999999996,14,78.5,10,10.199999999999999,"03:04:00",null,null,null,""]
[null,10.9,86,10.9,3.6,7.2,117,1009.9,0,0,0,4.5999999999999996,14,78.5,10.1,10.199999999999999,"03:05:00",null,null,null,""]
[null,10.9,86,10.9,1.4,3.6,87,1009.8,0,0,0,4.5999999999999996,14,78.5,10.1,10.199999999999999,"03:06:00",null,null,null,""]
[null,10.9,86,10.9,2.9,5.4,129,1009.8,0,0,0,4.5999999999999996,14,78.5,10.1,10.3,"03:07:00",null,null,null,""]
[null,10.9,86,10.9,0.4,1.8,48,1009.8,0,0,0,4.5999999999999996,14,78.5,10.1,10.3,"03:08:00",null,null,null,""]
[null,10.9,86,10.9,2.2000000000000002,5.4,77,1009.8,0,0,0,4.5999999999999996,14,78.5,10.1,10.199999999999999,"03:09:00",null,null,null,""]
[null,10.9,86,10.9,6.1,11.2,102,1009.9,0,0,0,4.5999999999999996,14,78.5,10.1,10.3,"03:10:00",null,null,null,""]
[null,10.9,86,10.9,6.5,9.4,103,1009.7,0,0,0,4.5999999999999996,14,78.5,10.1,10.3,"03:11:00",null,null,null,""]
[null,11,86,11,4,5.4,99,1010,0,0,0,4.5999999999999996,14,78.5,10.199999999999999,10.3,"03:12:00",null,null,null,""]
[null,11,86,11,0,0,70,1009.7,0,0,0,4.5999999999999996,14,78.5,10.1,10.3,"03:13:00",null,null,null,""]
[null,11,86,11,4.7,7.2,89,1009.9,0,0,0,4.5999999999999996,14,78.5,10.1,10.3,"03:14:00",null,null,null,{"$f":"IF(J203>0,60,\"\")","v":""}]
[null,11,86,11,2.9,5.4,107,1009.7,0,0,0,4.5999999999999996,14,78.5,10.1,10.3,"03:15:00",null,null,null,""]
[null,11,86,11,4.3,9.4,114,1009.9,0,0,0,4.5999999999999996,14,78.5,10.1,10.3,"03:16:00",null,null,null,""]
[null,11,86,11,3.6,3.6,68,1009.9,0,0,0,4.5999999999999996,14,78.5,10.1,10.199999999999999,"03:17:00",null,null,null,""]
[null,11,86,11,2.9,3.6,92,1009.6,0,0,0,4.5999999999999996,14,78.5,10.1,10.199999999999999,"03:18:00",null,null,null,""]
[null,11,86,11,4,7.2,80,1009.7,0,0,0,4.5999999999999996,14,78.5,10.1,10.199999999999999,"03:19:00",null,null,null,""]
[null,11,85,11,3.2,9.4,62,1009.6,0,0,0,4.5999999999999996,14,78.5,10.1,10.199999999999999,"03:20:00",null,null,null,""]
[null,11,85,11,2.5,3.6,100,1009.7,0,0,0,4.5999999999999996,14,78.5,10.1,10.199999999999999,"03:21:00",null,null,null,""]
[null,11,85,11,2.2000000000000002,3.6,92,1009.6,0,0,0,4.5999999999999996,14,78.5,10.1,10.199999999999999,"03:22:00",null,null,null,""]
[null,11,85,11,1.8,5.4,43,1009.7,0,0,0,4.5999999999999996,14,78.5,10,10.199999999999999,"03:23:00",null,null,null,""]
[null,11,85,11,4.7,5.4,68,1009.5,0,0,0,4.5999999999999996,14,78.5,10,10.199999999999999,"03:24:00",null,null,null,""]
[null,11,85,11,3.6,7.2,61,1009.8,0,0,0,4.5999999999999996,14,78.5,10,10.199999999999999,"03:25:00",null,null,null,""]
[null,11.1,85,11.1,3.2,5.4,96,1009.8,0,0,0,4.5999999999999996,14,78.5,10,10.199999999999999,"03:26:00",null,null,null,""]
[null,11.1,85,11.1,1.1000000000000001,1.8,60,1009.7,0,0,0,4.5999999999999996,14,78.5,10,10.199999999999999,"03:27:00",null,null,null,""]
[null,11.1,85,11.1,3.2,5.4,78,1009.5,0,0,0,4.5999999999999996,14,78.5,10.1,10.199999999999999,"03:28:00",null,null,null,""]
[null,11.1,85,11.1,2.9,5.4,116,1009.7,0,0,0,4.5999999999999996,14,78.5,10,10.199999999999999,"03:29:00",null,null,null,""]
[null,11.1,85,11.1,1.4,5.4,92,1009.6,0,0,0,4.5999999999999996,14,78.5,10.1,10.3,"03:30:00",null,null,null,""]
[null,11.1,85,11.1,4.7,9.4,107,1009.4,0,0,0,4.5999999999999996,14,78.5,10.1,10.3,"03:31:00",null,null,null,""]
[null,11.1,85,11.1,4.7,7.2,112,1009.8,0,0,0,4.5999999999999996,14,78.5,10.1,10.3,"03:32:00",null,null,null,""]
[null,11.1,85,11.1,6.5,11.2,99,1009.5,0,0,0,4.5999999999999996,14,78.5,10.1,10.199999999999999,"03:33:00",null,null,null,""]
[null,11.1,85,11.1,4.7,7.2,91,1009.4,0,0,0,4.5999999999999996,14,78.5,10.1,10.3,"03:34:00",null,null,null,""]
[null,11.1,85,11.1,4,9.4,120,1009.6,0,0,0,4.5999999999999996,14,78.5,10.1,10.3,"03:35:00",null,null,null,""]
[null,11.1,85,11.1,2.5,3.6,74,1009.7,0,0,0,4.5999999999999996,14,78.5,10.1,10.3,"03:36:00",null,null,null,""]
[null,11.1,85,11.1,1.4,3.6,108,1009.8,0,0,0,4.5999999999999996,14,78.5,10.1,10.3,"03:37:00",null,null,null,""]
[null,11.1,85,11.1,8.3000000000000007,13,82,1009.6,0,0,0,4.5999999999999996,14,78.5,10.1,10.3,"03:38:00",null,null,null,""]
[null,11.1,85,11.1,6.5,13,89,1009.4,0,0,0,4.5999999999999996,14,78.5,10.1,10.3,"03:39:00",null,null,null,""]
[null,11.1,85,11.1,6.5,9.4,99,1009.4,0,0,0,4.5999999999999996,14,78.5,10.1,10.4,"03:40:00",null,null,null,""]
[null,11.1,85,11.1,5.8,11.2,51,1009.4,0,0,0,4.5999999999999996,14,78.5,10.1,10.3,"03:41:00",null,null,null,""]
[null,11.1,85,11.1,3.6,5.4,116,1009.3,0,0,0,4.5999999999999996,14,78.5,10.1,10.4,"03:42:00",null,null,null,""]
[null,11.1,85,11.1,1.4,3.6,112,1009.3,0,0,0,4.5999999999999996,14,78.5,10.199999999999999,10.4,"03:43:00",null,null,null,""]
[null,11.1,85,11.1,2.2000000000000002,3.6,84,1009.2,0,0,0,4.5999999999999996,14,78.5,10.1,10.3,"03:44:00",null,null,null,""]
[null,11.1,85,11.1,4.7,14.8,80,1009.2,0,0,0,4.5999999999999996,14,78.5,10.1,10.4,"03:45:00",null,null,null,""]
[null,11.1,85,11.1,5,7.2,95,1009.4,0,0,0,4.5999999999999996,14,78.5,10.1,10.3,"03:46:00",null,null,null,""]
[null,11.1,85,11.1,2.2000000000000002,5.4,104,1009.3,0,0,0,4.5999999999999996,14,78.5,10.1,10.3,"03:47:00",null,null,null,""]
[null,11.1,85,11.1,6.5,25.6,85,1009.4,0,0,0,4.5999999999999996,14,78.5,10.1,10.3,"03:48:00",null,null,null,""]
[null,11.1,85,11.1,5,9.4,61,1009.3,0,0,0,4.5999999999999996,14,78.5,10.1,10.3,"03:49:00",null,null,null,""]
[null,11.1,85,11.1,4.3,7.2,95,1009.2,0,0,0,4.5999999999999996,14,78.5,10,10.3,"03:50:00",null,null,null,""]
[null,11.1,85,11.1,1.8,3.6,90,1009.5,0,0,0,4.5999999999999996,14,78.5,10.1,10.3,"03:51:00",null,null,null,""]
[null,11.1,85,11.1,4.7,7.2,65,1009.3,0,0,0,4.5999999999999996,14,78.5,10,10.3,"03:52:00",null,null,null,""]
[null,11.1,85,11.1,4.3,5.4,104,1009.4,0,0,0,4.5999999999999996,14,78.5,10,10.3,"03:53:00",null,null,null,""]
[null,11.1,85,11.1,1.4,3.6,33,1009.4,0,0,0,4.5999999999999996,14,78.5,10,10.3,"03:54:00",null,null,null,""]
[null,11.1,85,11.1,1.4,3.6,65,1009.2,0,0,0,4.5999999999999996,14,78.5,10,10.3,"03:55:00",null,null,null,""]
[null,11.1,85,11.1,1.8,3.6,102,1009.3,0,0,0,4.5999999999999996,14,78.5,10,10.3,"03:56:00",null,null,null,""]
[null,11.1,85,11.1,5.4,9.4,98,1009.1,0,0,0,4.5999999999999996,14,78.5,10,10.3,"03:57:00",null,null,null,""]
[null,11.1,85,11.1,4.3,9.4,82,1009.2,0,0,0,4.5999999999999996,14,78.5,10,10.3,"03:58:00",null,null,null,""]
[null,11.1,85,11.1,4,7.2,76,1009.1,0,0,0,4.5999999999999996,14,78.5,10.1,10.3,"03:59:00",null,null,null,""]
[null,11.1,85,11.1,4,9.4,105,1009.1,0,0,0,4.5999999999999996,14,78.5,10,10.3,"04:00:00",null,null,null,""]
[null,11.1,85,11.1,1.8,5.4,82,1009.2,0,0,0,4.5999999999999996,14,78.5,10.1,10.3,"04:01:00",null,null,null,""]
[null,11.1,85,11.1,6.5,13,57,1009.2,0,0,0,4.5999999999999996,14,78.5,10.1,10.3,"04:02:00",null,null,null,""]
[null,11.1,85,11.1,1.8,3.6,120,1009,0,0,0,4.5999999999999996,14,78.5,10.1,10.3,"04:03:00",null,null,null,""]
[null,11.1,85,11.1,6.1,14.8,96,1009,0,0,0,4.5999999999999996,14,78.5,10.1,10.4,"04:04:00",null,null,null,""]
[null,11.1,85,11.1,4,7.2,89,1009.2,0,0,0,4.5999999999999996,14,78.5,10.199999999999999,10.3,"04:05:00",null,null,null,""]
[null,11.1,85,11.1,6.5,11.2,105,1009,0,0,0,4.5999999999999996,14,78.5,10.199999999999999,10.4,"04:06:00",null,null,null,""]
[null,11.1,85,11.1,3.6,5.4,151,1009,0,0,0,4.5999999999999996,14,78.5,10.199999999999999,10.4,"04:07:00",null,null,null,""]
[null,11.1,85,11.1,7.6,13,95,1009.1,0,0,0,4.5999999999999996,14,78.5,10.199999999999999,10.4,"04:08:00",null,null,null,""]
[null,11.1,85,11.1,0.7,1.8,109,1009.3,0,0,0,4.5999999999999996,14,78.5,10.199999999999999,10.4,"04:09:00",null,null,null,""]
[null,11.1,85,11.1,7.9,11.2,49,1008.9,0,0,0,4.5999999999999996,14,78.5,10.199999999999999,10.4,"04:10:00",null,null,null,""]
[null,11.1,85,11.1,3.6,13,81,1009.1,0,0,0,4.5999999999999996,14,78.5,10.199999999999999,10.4,"04:11:00",null,null,null,""]
[null,11.1,85,11.1,8.6,14.8,110,1008.9,0,0,0,4.5999999999999996,14,78.5,10.199999999999999,10.4,"04:12:00",null,null,null,""]
[null,11.1,85,11.1,4.7,9.4,130,1008.9,0,0,0,4.5999999999999996,14,78.5,10.199999999999999,10.4,"04:13:00",null,null,null,""]
[null,11.1,85,11.1,1.4,3.6,108,1009,0,0,0,4.5999999999999996,14,78.5,10.199999999999999,10.4,"04:14:00",null,null,null,""]
[null,11.1,85,11.1,6.1,9.4,112,1008.9,0,0,0,4.5999999999999996,14,78.5,10.199999999999999,10.4,"04:15:00",null,null,null,""]
[null,11.1,85,11.1,2.5,5.4,97,1008.8,0,0,0,4.5999999999999996,14,78.5,10.199999999999999,10.4,"04:16:00",null,null,null,""]
[null,11.1,85,11.1,4,5.4,103,1008.8,0,0,0,4.5999999999999996,14,78.5,10.199999999999999,10.4,"04:17:00",null,null,null,""]
[null,11,85,11,0,0,91,1008.9,0,0,0,4.5999999999999996,14,78.5,10.199999999999999,10.4,"04:18:00",null,null,null,{"$f":"IF(J267>0,60,\"\")","v":""}]
[null,11,85,11,3.6,7.2,104,1008.8,0,0,0,4.5999999999999996,14,78.5,10.199999999999999,10.4,"04:19:00",null,null,null,""]
[null,11,85,11,4.3,7.2,94,1008.9,0,0,0,4.5999999999999996,14,78.5,10.3,10.4,"04:20:00",null,null,null,""]
[null,11,85,11,3.2,5.4,101,1008.7,0,0,0,4.5999999999999996,14,78.5,10.3,10.4,"04:21:00",null,null,null,""]
[null,11,85,11,1.4,3.6,59,1008.7,0,0,0,4.5999999999999996,14,78.5,10.3,10.4,"04:22:00",null,null,null,""]
[null,11,85,11,6.1,11.2,116,1008.9,0,0,0,4.5999999999999996,14,78.5,10.3,10.4,"04:23:00",null,null,null,""]
[null,11,85,11,3.6,9.4,95,1008.8,0,0,0,4.5999999999999996,14,78.5,10.3,10.4,"04:24:00",null,null,null,""]
[null,11,85,11,0.7,1.8,131,1008.8,0,0,0,4.5999999999999996,14,78.5,10.199999999999999,10.4,"04:25:00",null,null,null,""]
[null,11,85,11,2.9,5.4,67,1008.7,0,0,0,4.5999999999999996,14,78.5,10.3,10.4,"04:26:00",null,null,null,""]
[null,11,85,11,5.4,7.2,125,1008.6,0,0,0,4.5999999999999996,14,78.5,10.3,10.4,"04:27:00",null,null,null,""]
[null,11,85,11,5.4,11.2,52,1008.6,0,0,0,4.5999999999999996,14,78.5,10.199999999999999,10.4,"04:28:00",null,null,null,""]
[null,11,85,11,4.7,11.2,143,1008.6,0,0,0,4.5999999999999996,14,78.5,10.3,10.4,"04:29:00",null,null,null,""]
[null,11,85,11,7.6,14.8,80,1008.7,0,0,0,4.5999999999999996,14,78.5,10.3,10.4,"04:30:00",null,null,null,""]
[null,11,85,11,3.6,7.2,144,1008.4,0,0,0,4.5999999999999996,14,78.5,10.3,10.4,"04:31:00",null,null,null,""]
[null,11,85,11,3.6,5.4,63,1008.7,0,0,0,4.5999999999999996,14,78.5,10.199999999999999,10.4,"04:32:00",null,null,null,""]
[null,11,85,11,6.1,11.2,79,1008.6,0,0,0,4.5999999999999996,14,78.5,10.3,10.4,"04:33:00",null,null,null,""]
[null,11,84,11,5.4,11.2,69,1008.6,0,0,0,4.5999999999999996,14,78.5,10.199999999999999,10.4,"04:34:00",null,null,null,""]
[null,11.1,84,11.1,2.2000000000000002,5.4,111,1008.4,0,0,0,4.5999999999999996,14,78.5,10.199999999999999,10.4,"04:35:00",null,null,null,""]
[null,11.1,84,11.1,0.7,1.8,98,1008.5,0,0,0,4.5999999999999996,14,78.5,10.199999999999999,10.4,"04:36:00",null,null,null,""]
[null,11.1,85,11.1,5.8,14.8,71,1008.5,0,0,0,4.5999999999999996,14,78.5,10.3,10.4,"04:37:00",null,null,null,""]
[null,11.1,85,11.1,4,5.4,111,1008.4,0,0,0,4.5999999999999996,14,78.5,10.199999999999999,10.4,"04:38:00",null,null,null,""]
[null,11,85,11,3.6,7.2,145,1008.3,0,0,0,4.5999999999999996,14,78.5,10.199999999999999,10.4,"04:39:00",null,null,null,""]
[null,11,85,11,6.1,14.8,83,1008.3,0,0,0,4.5999999999999996,14,78.5,10.199999999999999,10.4,"04:40:00",null,null,null,""]
[null,11,85,11,4,7.2,76,1008.3,0,0,0,4.5999999999999996,14,78.5,10.199999999999999,10.4,"04:41:00",null,null,null,""]
[null,11,85,11,3.2,5.4,120,1008.5,0,0,0,4.5999999999999996,14,78.5,10.199999999999999,10.4,"04:42:00",null,null,null,""]
[null,11,85,11,3.6,5.4,76,1008.4,0,0,0,4.5999999999999996,14,78.5,10.1,10.3,"04:43:00",null,null,null,""]
[null,10.9,85,10.9,6.1,11.2,129,1008.4,0,0,0,4.5999999999999996,14,78.5,10.1,10.3,"04:44:00",null,null,null,""]
[null,10.9,85,10.9,4,7.2,71,1008.4,0,0,0,4.5999999999999996,14,78.5,10.1,10.3,"04:45:00",null,null,null,""]
[null,10.9,85,10.9,3.6,7.2,138,1008.3,0,0,0,4.5999999999999996,14,78.5,10.1,10.3,"04:46:00",null,null,null,""]
[null,10.9,86,10.9,4,5.4,83,1008.4,0,0,0,4.5999999999999996,14,78.5,10.1,10.3,"04:47:00",null,null,null,""]
[null,10.9,86,10.9,0.4,1.8,131,1008.3,0,0,0,4.5999999999999996,14,78.5,10.1,10.3,"04:48:00",null,null,null,""]
[null,10.9,86,10.9,4.7,9.4,112,1008.2,0,0,0,4.5999999999999996,14,78.5,10.1,10.199999999999999,"04:49:00",null,null,null,""]
[null,10.9,85,10.9,4.7,7.2,146,1008.1,0,0,0,4.5999999999999996,14,78.5,10,10.199999999999999,"04:50:00",null,null,null,""]
[null,10.9,86,10.9,7.6,11.2,114,1008.1,0,0,0,4.5999999999999996,14,78.5,10,10.199999999999999,"04:51:00",null,null,null,""]
[null,10.9,85,10.9,6.8,9.4,89,1008.4,0,0,0,4.5999999999999996,14,78.5,10,10.199999999999999,"04:52:00",null,null,null,""]
[null,10.9,85,10.9,0.4,1.8,83,1008.3,0,0,0,4.5999999999999996,14,78.5,10.1,10.199999999999999,"04:53:00",null,null,null,""]
[null,10.9,85,10.9,5.8,7.2,109,1008.3,0,0,0,4.5999999999999996,14,78.5,10,10.199999999999999,"04:54:00",null,null,null,""]
[null,10.9,85,10.9,1.4,1.8,123,1008.3,0,0,0,4.5999999999999996,14,78.5,10,10.199999999999999,"04:55:00",null,null,null,""]
[null,10.9,85,10.9,2.2000000000000002,3.6,91,1008,0,0,0,4.5999999999999996,14,78.5,10,10.199999999999999,"04:56:00",null,null,null,""]
[null,10.9,85,10.9,3.2,7.2,106,1008.3,0,0,0,4.5999999999999996,14,78.5,10.1,10.199999999999999,"04:57:00",null,null,null,""]
[null,10.9,85,10.9,3.2,5.4,78,1008.3,0,0,0,4.5999999999999996,14,78.5,10.1,10.199999999999999,"04:58:00",null,null,null,""]
[null,10.9,85,10.9,2.5,5.4,106,1008.3,0,0,0,4.5999999999999996,14,78.5,10,10.199999999999999,"04:59:00",null,null,null,""]
[null,10.9,85,10.9,1.4,1.8,102,1008.3,0,0,0,4.5999999999999996,14,78.5,10.1,10.199999999999999,"05:00:00",null,null,null,""]
[null,10.9,85,10.9,3.2,5.4,178,1008,0,0,0,4.5999999999999996,14,78.5,10.1,10.199999999999999,"05:01:00",null,null,null,""]
[null,10.9,85,10.9,7.2,11.2,76,1008.2,0,0,0,4.5999999999999996,14,78.5,10.1,10.199999999999999,"05:02:00",null,null,null,""]
[null,10.9,85,10.9,5.8,9.4,96,1008.1,0,0,0,4.5999999999999996,14,78.5,10.1,10.199999999999999,"05:03:00",null,null,null,""]
[null,10.9,85,10.9,5.8,7.2,116,1008.3,0,0,0,4.5999999999999996,14,78.5,10.1,10.199999999999999,"05:04:00",null,null,null,""]
[null,11,85,11,5.8,9.4,96,1008,0,0,0,4.5999999999999996,14,78.5,10.1,10.199999999999999,"05:05:00",null,null,null,""]
[null,11,85,11,2.2000000000000002,3.6,88,1008.1,0,0,0,4.5999999999999996,14,78.5,10.1,10.199999999999999,"05:06:00",null,null,null,""]
[null,11,85,11,3.6,5.4,94,1008.2,0,0,0,4.5999999999999996,14,78.5,10,10.199999999999999,"05:07:00",null,null,null,""]
[null,11,85,11,6.1,13,107,1008,0,0,0,4.5999999999999996,14,78.5,10,10.199999999999999,"05:08:00",null,null,null,""]
[null,10.9,85,10.9,4.7,9.4,107,1007.8,0,0,0,4.5999999999999996,14,78.5,10,10.199999999999999,"05:09:00",null,null,null,""]
[null,10.9,85,10.9,2.9,7.2,90,1008.2,0,0,0,4.5999999999999996,14,78.5,10,10.199999999999999,"05:10:00",null,null,null,""]
[null,11,85,11,5.4,9.4,76,1007.9,0,0,0,4.5999999999999996,14,78.5,10,10.199999999999999,"05:11:00",null,null,null,""]
[null,11,85,11,5.8,13,344,1008.1,0,0,0,4.5999999999999996,14,78.5,10,10.199999999999999,"05:12:00",null,null,null,""]
[null,11,85,11,5.4,9.4,70,1008,0,0,0,4.5999999999999996,14,78.5,9.9,10.199999999999999,"05:13:00",null,null,null,""]
[null,11,85,11,7.6,11.2,78,1007.8,0,0,0,4.5999999999999996,14,78.5,10,10.1,"05:14:00",null,null,null,""]
[null,11,85,11,4.7,7.2,82,1007.8,0,0,0,4.5999999999999996,14,78.5,9.9,10.1,"05:15:00",null,null,null,""]
[null,11,85,11,9.6999999999999993,13,157,1007.9,0,0,0,4.5999999999999996,14,78.5,9.9,10.1,"05:16:00",null,null,null,""]
[null,11,85,11,4.7,7.2,141,1007.9,0,0,0,4.5999999999999996,14,78.5,9.9,10.1,"05:17:00",null,null,null,""]
[null,11,85,11,5.4,9.4,91,1007.9,0,0,0,4.5999999999999996,14,78.5,9.9,10.1,"05:18:00",null,null,null,""]
[null,11,85,11,4,5.4,95,1008.1,0,0,0,4.5999999999999996,14,78.5,9.9,10.1,"05:19:00",null,null,null,""]
[null,11,85,11,4,7.2,56,1007.7,0,0,0,4.5999999999999996,14,78.5,9.9,10.1,"05:20:00",null,null,null,""]
[null,10.9,85,10.9,3.2,5.4,56,1008,0,0,0,4.5999999999999996,14,78.5,9.9,10.1,"05:21:00",null,null,null,""]
[null,10.9,85,10.9,4,7.2,120,1008,0,0,0,4.5999999999999996,14,78.5,9.8000000000000007,10.1,"05:22:00",null,null,null,{"$f":"IF(J331>0,60,\"\")","v":""}]
[null,10.9,85,10.9,5.4,7.2,114,1008,0,0,0,4.5999999999999996,14,78.5,9.8000000000000007,10.1,"05:23:00",null,null,null,""]
[null,10.9,85,10.9,2.9,5.4,112,1008,0,0,0,4.5999999999999996,14,78.5,9.9,10,"05:24:00",null,null,null,""]
[null,10.9,85,10.9,1.1000000000000001,1.8,86,1008,0,0,0,4.5999999999999996,14,78.5,9.9,10.1,"05:25:00",null,null,null,""]
[null,10.9,85,10.9,2.9,5.4,80,1008,0,0,0,4.5999999999999996,14,78.5,9.9,10.1,"05:26:00",null,null,null,""]
[null,10.9,85,10.9,10.1,13,66,1008.1,0,0,0,4.5999999999999996,14,78.5,9.8000000000000007,10,"05:27:00",null,null,null,""]
[null,10.9,85,10.9,4,5.4,94,1008.1,0,0,0,4.5999999999999996,14,78.5,9.8000000000000007,10,"05:28:00",null,null,null,""]
[null,11,85,11,1.8,5.4,110,1008,0,0,0,4.5999999999999996,14,78.5,9.8000000000000007,10,"05:29:00",null,null,null,""]
[null,11,85,11,2.2000000000000002,3.6,53,1008,0,0,0,4.5999999999999996,14,78.5,9.8000000000000007,10,"05:30:00",null,null,null,""]
[null,11,85,11,3.6,5.4,99,1008,0,0,0,4.5999999999999996,14,78.5,9.8000000000000007,10,"05:31:00",null,null,null,""]
[null,11,85,11,2.5,5.4,99,1007.9,0,0,0,4.5999999999999996,14,78.5,9.8000000000000007,10,"05:32:00",null,null,null,""]
[null,11,85,11,1.4,3.6,171,1007.9,0,0,0,4.5999999999999996,14,78.5,9.9,10,"05:33:00",null,null,null,""]
[null,11,85,11,7.2,13,127,1008,0,0,0,4.5999999999999996,14,78.5,9.9,10,"05:34:00",null,null,null,""]
[null,11,85,11,7.9,11.2,110,1007.8,0,0,0,4.5999999999999996,14,78.5,9.9,10,"05:35:00",null,null,null,""]
[null,11,84,11,4.7,9.4,49,1008.1,0,0,0,4.5999999999999996,14,78.5,9.9,10,"05:36:00",null,null,null,""]
[null,11,84,11,3.6,5.4,124,1008,0,0,0,4.5999999999999996,14,78.5,9.9,10,"05:37:00",null,null,null,""]
[null,11,84,11,3.6,5.4,74,1007.9,0,0,0,4.5999999999999996,14,78.5,10,10,"05:38:00",null,null,null,""]
[null,11,84,11,4,7.2,118,1007.9,0,0,0,4.5999999999999996,14,78.5,10,10,"05:39:00",null,null,null,""]
[null,11,84,11,7.9,13,82,1008.1,0,0,0,4.5999999999999996,14,78.5,10,10.1,"05:40:00",null,null,null,""]
[null,11,84,11,5.4,9.4,79,1008,0,0,0,4.5999999999999996,14,78.5,10,10.1,"05:41:00",null,null,null,""]
[null,11,84,11,7.2,11.2,100,1008,0,0,0,4.5999999999999996,14,78.5,10,10.1,"05:42:00",null,null,null,""]
[null,11,84,11,7.9,13,114,1008,0,0,0,4.5999999999999996,14,78.5,10.1,10.1,"05:43:00",null,null,null,""]
[null,11,84,11,3.6,7.2,79,1008.2,0,0,0,4.5999999999999996,14,78.5,10,10.1,"05:44:00",null,null,null,""]
[null,11,84,11,2.5,3.6,72,1007.9,0,0,0,4.5999999999999996,14,78.5,10,10.1,"05:45:00",null,null,null,""]
[null,11,84,11,7.6,13,91,1007.9,0,0,0,4.5999999999999996,14,78.5,10,10.1,"05:46:00",null,null,null,""]
[null,11,84,11,4.7,9.4,93,1007.9,0,0,0,4.5999999999999996,14,78.5,10,10.1,"05:47:00",null,null,null,""]
[null,11,84,11,2.2000000000000002,5.4,139,1007.8,0,0,0,4.5999999999999996,14,78.5,10,10.199999999999999,"05:48:00",null,null,null,""]
[null,11.1,84,11.1,4.7,7.2,49,1008,0,0,0,4.5999999999999996,14,78.5,10,10.199999999999999,"05:49:00",null,null,null,""]
[null,11.1,84,11.1,1.1000000000000001,1.8,132,1007.9,0,0,0,4.5999999999999996,14,78.5,10.1,10.199999999999999,"05:50:00",null,null,null,""]
[null,11.1,84,11.1,11.9,14.8,71,1008,0,0,0,4.5999999999999996,14,78.5,10.1,10.199999999999999,"05:51:00",null,null,null,""]
[null,11.1,84,11.1,4,7.2,106,1007.9,0,0,0,4.5999999999999996,14,78.5,10.1,10.199999999999999,"05:52:00",null,null,null,""]
[null,11.1,84,11.1,1.4,3.6,64,1007.9,0,0,0,4.5999999999999996,14,78.5,10.1,10.199999999999999,"05:53:00",null,null,null,""]
[null,11.1,84,11.1,1.4,5.4,77,1007.9,0,0,0,4.5999999999999996,14,78.5,10.1,10.199999999999999,"05:54:00",null,null,null,""]
[null,11.1,85,11.1,4.3,5.4,28,1008,0,0,0,4.5999999999999996,14,78.5,10.199999999999999,10.3,"05:55:00",null,null,null,""]
[null,11,85,11,4.7,9.4,103,1007.9,0,0,0,4.5999999999999996,14,78.5,10.199999999999999,10.3,"05:56:00",null,null,null,""]
[null,11,85,11,5.4,9.4,34,1008,0,0,0,4.5999999999999996,14,78.5,10.199999999999999,10.3,"05:57:00",null,null,null,""]
[null,11,85,11,2.2000000000000002,3.6,134,1008,0,0,0,4.5999999999999996,14,78.5,10.199999999999999,10.3,"05:58:00",null,null,null,""]
[null,11,84,11,7.9,13,124,1007.9,0,0,0,4.5999999999999996,14,78.5,10.199999999999999,10.4,"05:59:00",null,null,null,""]
[null,11,84,11,1.4,3.6,118,1007.8,0,0,0,4.5999999999999996,14,78.5,10.199999999999999,10.3,"06:00:00",null,null,null,"",null,{"$f":"IF(OR(O369=60,P369>B369+4),60,\"\")","v":""}]
[null,11,84,11,8.6,14.8,112,1008,0,0,0,4.5999999999999996,14,78.5,10.199999999999999,10.4,"06:01:00",null,{"$f":"MAX(O370,P370)","v":10.4},{"$f":"S370-B370","v":-0.59999999999999964},"",null,{"$f":"IF(OR(O370=60,P370>B370+4),60,\"\")","v":""}]
[null,11,84,11,1.1000000000000001,3.6,102,1007.7,0,0,0,4.5999999999999996,14,78.5,10.199999999999999,10.4,"06:02:00",null,{"$f":"MAX(O371,P371)","v":10.4},{"$f":"S371-B371","v":-0.59999999999999964},"",null,""]
[null,11,84,11,3.6,9.4,128,1007.7,0,0,0,4.5999999999999996,14,78.5,10.199999999999999,10.3,"06:03:00",null,10.3,-0.69999999999999929,"",null,""]
[null,11.1,84,11.1,7.9,11.2,87,1008,0,0,0,4.5999999999999996,14,78.5,10.199999999999999,10.3,"06:04:00",null,10.3,-0.79999999999999893,"",null,""]
[null,11.1,84,11.1,2.2000000000000002,7.2,94,1007.9,0,0,0,4.5999999999999996,14,78.5,10.199999999999999,10.4,"06:05:00",null,10.4,-0.69999999999999929,"",null,""]
[null,11.1,84,11.1,3.6,7.2,61,1007.8,0,0,0,4.5999999999999996,14,78.5,10.199999999999999,10.4,"06:06:00",null,10.4,-0.69999999999999929,"",null,""]
[null,11.1,84,11.1,5.4,7.2,75,1007.7,0,0,0,4.5999999999999996,14,78.5,10.199999999999999,10.4,"06:07:00",null,10.4,-0.69999999999999929,"",null,""]
[null,11.1,84,11.1,4.3,7.2,105,1007.8,0,0,0,4.5999999999999996,14,78.5,10.199999999999999,10.4,"06:08:00",null,10.4,-0.69999999999999929,"",null,""]
[null,11,84,11,2.9,7.2,99,1007.7,0,0,0,4.5999999999999996,14,78.5,10.3,10.4,"06:09:00",null,10.4,-0.59999999999999964,"",null,""]
[null,11,85,11,5.4,11.2,136,1007.8,0,0,0,4.5999999999999996,14,78.5,10.3,10.4,"06:10:00",null,10.4,-0.59999999999999964,"",null,""]
[null,11,85,11,4.7,7.2,61,1007.5,0,0,0,4.5999999999999996,14,78.5,10.3,10.4,"06:11:00",null,10.4,-0.59999999999999964,"",null,""]
[null,11,85,11,3.6,7.2,93,1007.9,0,0,0,4.5999999999999996,14,78.5,10.3,10.4,"06:12:00",null,10.4,-0.59999999999999964,"",null,""]
[null,11,85,11,8.3000000000000007,14.8,170,1007.7,0,0,0,4.5999999999999996,14,78.5,10.3,10.4,"06:13:00",null,10.4,-0.59999999999999964,"",null,""]
[null,11,84,11,7.9,11.2,103,1007.7,0,0,0,4.5999999999999996,14,78.5,10.3,10.4,"06:14:00",null,10.4,-0.59999999999999964,"",null,""]
[null,11,84,11,5.4,7.2,85,1007.5,0,0,0,4.5999999999999996,14,78.5,10.3,10.4,"06:15:00",null,10.4,-0.59999999999999964,"",null,""]
[null,11,85,11,6.5,11.2,94,1007.8,0,0,0,4.5999999999999996,14,78.5,10.3,10.4,"06:16:00",null,10.4,-0.59999999999999964,"",null,""]
[null,11,85,11,6.5,13,56,1007.9,0,0,0,4.5999999999999996,14,78.5,10.3,10.4,"06:17:00",null,10.4,-0.59999999999999964,"",null,""]
[null,11,85,11,1.4,3.6,114,1007.8,0,0,0,4.5999999999999996,14,78.5,10.3,10.4,"06:18:00",null,10.4,-0.59999999999999964,"",null,""]
[null,11,85,11,1.1000000000000001,1.8,101,1007.6,0,0,0,4.5999999999999996,14,78.5,10.3,10.4,"06:19:00",null,10.4,-0.59999999999999964,"",null,""]
[null,11,85,11,2.2000000000000002,5.4,58,1007.7,0,0,0,4.5999999999999996,14,78.5,10.3,10.4,"06:20:00",null,10.4,-0.59999999999999964,"",null,""]
[null,11,85,11,0.7,3.6,107,1007.6,0,0,0,4.5999999999999996,14,78.5,10.3,10.4,"06:21:00",null,10.4,-0.59999999999999964,"",null,""]
[null,11,85,11,2.2000000000000002,3.6,82,1007.9,0,0,0,4.5999999999999996,14,78.5,10.3,10.4,"06:22:00",null,10.4,-0.59999999999999964,"",null,""]
[null,11,85,11,2.2000000000000002,7.2,107,1007.7,0,0,0,4.5999999999999996,14,78.5,10.3,10.4,"06:23:00",null,10.4,-0.59999999999999964,"",null,""]
[null,11,85,11,4,5.4,98,1007.7,0,0,0,4.5999999999999996,14,78.5,10.3,10.4,"06:24:00",null,10.4,-0.59999999999999964,"",null,""]
[null,11,85,11,4,9.4,131,1007.7,0,0,0,4.5999999999999996,14,78.5,10.3,10.4,"06:25:00",null,{"$f":"MAX(O394,P394)","v":10.4},{"$f":"S394-B394","v":-0.59999999999999964},"",null,""]
[null,11,85,11,2.2000000000000002,3.6,104,1007.6,0,0,0,4.5999999999999996,14,78.5,10.3,10.4,"06:26:00",null,10.4,-0.59999999999999964,{"$f":"IF(J395>0,60,\"\")","v":""},null,""]
[null,11,85,11,1.8,3.6,47,1007.8,0,0,0,4.5999999999999996,14,78.5,10.3,10.4,"06:27:00",null,10.4,-0.59999999999999964,"",null,""]
[null,11,85,11,2.2000000000000002,3.6,104,1007.5,0,0,0,4.5999999999999996,14,78.5,10.3,10.4,"06:28:00",null,10.4,-0.59999999999999964,"",null,""]
[null,11,85,11,4,7.2,105,1007.7,0,0,0,4.5999999999999996,14,78.5,10.3,10.4,"06:29:00",null,10.4,-0.59999999999999964,"",null,""]
[null,11,85,11,3.6,11.2,73,1008.1,0,0,0,4.5999999999999996,14,78.5,10.4,10.5,"06:30:00",null,10.5,-0.5,"",null,""]
[null,11,84,11,6.1,16.600000000000001,100,1007.8,0,0,0,4.5999999999999996,14,78.5,10.4,10.5,"06:31:00",null,10.5,-0.5,"",null,""]
[null,11,84,11,2.9,5.4,114,1007.6,0,0,0,4.5999999999999996,14,78.5,10.4,10.5,"06:32:00",null,10.5,-0.5,"",null,""]
[null,11,84,11,2.9,7.2,111,1007.6,0,0,0,4.5999999999999996,14,78.5,10.4,10.5,"06:33:00",null,10.5,-0.5,"",null,""]
[null,11,84,11,5,9.4,121,1007.5,0,0,0,4.5999999999999996,14,78.5,10.4,10.5,"06:34:00",null,10.5,-0.5,"",null,""]
[null,11,84,11,3.6,7.2,131,1007.8,0,0,0,4.5999999999999996,14,78.5,10.4,10.5,"06:35:00",null,10.5,-0.5,"",null,""]
[null,11.1,84,11.1,1.8,3.6,102,1007.7,0,0,0,4.5999999999999996,14,78.5,10.5,10.5,"06:36:00",null,10.5,-0.59999999999999964,"",null,""]
[null,11.1,84,11.1,3.2,5.4,29,1007.7,0,0,0,4.5999999999999996,14,78.5,10.5,10.5,"06:37:00",null,10.5,-0.59999999999999964,"",null,""]
[null,11.1,84,11.1,5.4,9.4,111,1007.7,0,0,0,4.5999999999999996,14,78.5,10.5,10.5,"06:38:00",null,10.5,-0.59999999999999964,"",null,""]
[null,11.1,84,11.1,1.4,3.6,90,1007.7,0,0,0,4.5999999999999996,14,78.5,10.5,10.5,"06:39:00",null,10.5,-0.59999999999999964,"",null,""]
[null,11.1,84,11.1,2.5,3.6,97,1007.7,0,0,0,4.5999999999999996,14,78.5,10.5,10.6,"06:40:00",null,10.6,-0.5,"",null,""]
[null,11.2,84,11.2,0.4,1.8,92,1007.6,0,0,0,4.5999999999999996,14,78.5,10.6,10.6,"06:41:00",null,10.6,-0.59999999999999964,"",null,""]
[null,11.2,83,11.2,1.1000000000000001,1.8,91,1007.7,0,0,0,4.5999999999999996,14,78.5,10.6,10.6,"06:42:00",null,10.6,-0.59999999999999964,"",null,""]
[null,11.2,83,11.2,5.4,11.2,3,1007.5,0,0,0,4.5999999999999996,14,78.5,10.6,10.6,"06:43:00",null,10.6,-0.59999999999999964,"",null,""]
[null,11.2,83,11.2,1.4,5.4,190,1007.5,0,0,0,4.5999999999999996,14,78.5,10.6,10.6,"06:44:00",null,10.6,-0.59999999999999964,"",null,""]
[null,11.3,83,11.3,3.2,7.2,63,1007.6,0,0,0,4.5999999999999996,14,78.5,10.6,10.7,"06:45:00",null,10.7,-0.60000000000000142,"",null,""]
[null,11.3,83,11.3,1.8,3.6,98,1007.5,0,0,0,4.5999999999999996,14,78.5,10.6,10.6,"06:46:00",null,10.6,-0.70000000000000107,"",null,""]
[null,11.3,83,11.3,2.2000000000000002,3.6,188,1007.4,0,0,0,4.5999999999999996,14,78.5,10.6,10.7,"06:47:00",null,10.7,-0.60000000000000142,"",null,""]
[null,11.3,83,11.3,5.4,9.4,171,1007.3,0,0,0,4.5999999999999996,14,78.5,10.7,10.7,"06:48:00",null,10.7,-0.60000000000000142,"",null,""]
[null,11.3,83,11.3,3.6,5.4,132,1007.5,0,0,0,4.5999999999999996,14,78.5,10.7,10.7,"06:49:00",null,10.7,-0.60000000000000142,"",null,""]
[null,11.3,82,11.3,1.4,3.6,127,1007.6,0,0,0,4.5999999999999996,14,78.5,10.7,10.7,"06:50:00",null,10.7,-0.60000000000000142,"",null,""]
[null,11.3,82,11.3,4.7,11.2,33,1007.5,0,0,0,4.5999999999999996,14,78.5,10.7,10.7,"06:51:00",null,10.7,-0.60000000000000142,"",null,""]
[null,11.4,82,11.4,2.5,3.6,92,1007.4,0,0,0,4.5999999999999996,14,78.5,10.7,10.8,"06:52:00",null,10.8,-0.59999999999999964,"",null,""]
[null,11.4,82,11.4,4.7,9.4,105,1007.5,0,0,0,4.5999999999999996,14,78.5,10.7,10.8,"06:53:00",null,10.8,-0.59999999999999964,"",null,""]
[null,11.4,83,11.4,0.7,1.8,104,1007.3,0,0,0,4.5999999999999996,14,78.5,10.8,10.8,"06:54:00",null,10.8,-0.59999999999999964,"",null,""]
[null,11.3,83,11.3,2.9,3.6,115,1007.7,0,0,0,4.5999999999999996,14,78.5,10.8,10.8,"06:55:00",null,10.8,-0.5,"",null,""]
[null,11.3,83,11.3,2.9,5.4,80,1007.6,0,0,0,4.5999999999999996,14,78.5,10.8,10.8,"06:56:00",null,10.8,-0.5,"",null,""]
[null,11.3,83,11.3,5,11.2,109,1007.3,0,0,0,4.5999999999999996,14,78.5,10.8,10.8,"06:57:00",null,10.8,-0.5,"",null,""]
[null,11.3,83,11.3,2.9,7.2,121,1007.2,0,0,0,4.5999999999999996,14,78.5,10.8,10.8,"06:58:00",null,10.8,-0.5,"",null,""]
[null,11.3,83,11.3,2.2000000000000002,5.4,106,1007.3,0,0,0,4.5999999999999996,14,78.5,10.8,10.8,"06:59:00",null,10.8,-0.5,"",null,""]
[null,11.3,83,11.3,2.9,7.2,81,1007.6,0,0,0,4.5999999999999996,14,78.5,10.8,10.8,"07:00:00",null,10.8,-0.5,"",null,""]
[null,11.3,83,11.3,2.9,7.2,79,1007.5,0,0,0,4.5999999999999996,14,78.5,10.8,10.8,"07:01:00",null,10.8,-0.5,"",null,""]
[null,11.3,83,11.3,2.5,7.2,99,1007.5,0,0,0,4.5999999999999996,14,78.5,10.8,10.8,"07:02:00",null,10.8,-0.5,"",null,""]
[null,11.3,83,11.3,3.6,7.2,142,1007.3,0,0,0,4.5999999999999996,14,78.5,10.8,10.8,"07:03:00",null,10.8,-0.5,"",null,""]
[null,11.3,83,11.3,3.2,5.4,49,1007.4,0,0,0,4.5999999999999996,14,78.5,10.8,10.8,"07:04:00",null,10.8,-0.5,"",null,""]
[null,11.3,83,11.3,4.3,9.4,95,1007.5,0,0,0,4.5999999999999996,14,78.5,10.8,10.8,"07:05:00",null,10.8,-0.5,"",null,{"$f":"IF(OR(O434=60,P434>B434+4),60,\"\")","v":""}]
[null,11.3,83,11.3,4.3,7.2,119,1007.4,0,0,0,4.5999999999999996,14,78.5,10.8,10.8,"07:06:00",null,10.8,-0.5,"",null,""]
[null,11.3,83,11.3,4.7,9.4,132,1007.4,0,0,0,4.5999999999999996,14,78.5,10.8,10.8,"07:07:00",null,10.8,-0.5,"",null,""]
[null,11.3,83,11.3,2.2000000000000002,3.6,54,1007.7,0,0,0,4.5999999999999996,14,78.5,10.8,10.8,"07:08:00",null,10.8,-0.5,"",null,""]
[null,11.3,83,11.3,0.7,1.8,59,1007.6,0,0,0,4.5999999999999996,14,78.5,10.8,10.8,"07:09:00",null,10.8,-0.5,"",null,""]
[null,11.3,83,11.3,3.6,7.2,79,1007.4,0,0,0,4.5999999999999996,14,78.5,10.8,10.8,"07:10:00",null,10.8,-0.5,"",null,""]
[null,11.3,83,11.3,2.2000000000000002,3.6,106,1007.5,0,0,0,4.5999999999999996,14,78.5,10.8,10.8,"07:11:00",null,10.8,-0.5,"",null,""]
[null,11.3,84,11.3,2.2000000000000002,3.6,61,1007.5,0,0,0,4.5999999999999996,14,78.5,10.8,10.8,"07:12:00",null,10.8,-0.5,"",null,""]
[null,11.3,83,11,3.6,5.4,109,1007.6,0,0,0,4.5999999999999996,14,78.5,10.8,10.8,"07:13:00",null,10.8,-0.5,"",null,""]
[null,11.3,83,11,1.1000000000000001,1.8,43,1007.4,0,0,0,4.5999999999999996,14,78.5,10.8,10.8,"07:14:00",null,10.8,-0.5,"",null,""]
[null,11.3,83,11,2.9,7.2,43,1007.7,0,0,0,4.5999999999999996,14,78.5,10.8,10.8,"07:15:00",null,10.8,-0.5,"",null,""]
[null,11.3,83,11,2.9,5.4,104,1007.5,0,0,0,4.5999999999999996,14,78.5,10.8,10.8,"07:16:00",null,10.8,-0.5,"",null,""]
[null,null,null,null,null,null,null,null,null,null,null,null,null,null,null,null,null,null,0,0,"",null,""]
[null,null,null,null,null,null,null,null,null,null,null,null,null,null,null,null,null,null,0,0,"",null,""]
[null,null,null,null,null,null,null,null,null,null,null,null,null,null,null,null,null,null,0,0,"",null,""]
[null,null,null,null,null,null,null,null,null,null,null,null,null,null,null,null,null,null,0,0,"",null,""]
[null,null,null,null,null,null,null,null,null,null,null,null,null,null,null,null,null,null,0,0,"",null,""]
[null,null,null,null,null,null,null,null,null,null,null,null,null,null,null,null,null,null,0,0,"",null,""]
[null,null,null,null,null,null,null,null,null,null,null,null,null,null,null,null,null,null,0,0,"",null,""]
[null,null,null,null,null,null,null,null,null,null,null,null,null,null,null,null,null,null,0,0,"",null,""]
[null,null,null,null,null,null,null,null,null,null,null,null,null,null,null,null,null,null,0,0,"",null,""]
[null,null,null,null,null,null,null,null,null,null,null,null,null,null,null,null,null,null,0,0,"",null,""]
[null,null,null,null,null,null,null,null,null,null,null,null,null,null,null,null,null,null,0,0,"",null,""]
[null,null,null,null,null,null,null,null,null,null,null,null,null,null,null,null,null,null,0,0,"",null,""]
[null,null,null,null,null,null,null,null,null,null,null,null,null,null,null,null,null,null,{"$f":"MAX(O458,P458)","v":0},{"$f":"S458-B458","v":0},"",null,""]
[null,null,null,null,null,null,null,null,null,null,null,null,null,null,null,null,null,null,0,0,{"$f":"IF(J459>0,60,\"\")","v":""},null,""]
[null,null,null,null,null,null,null,null,null,null,null,null,null,null,null,null,null,null,0,0,"",null,""]
[null,null,null,null,null,null,null,null,null,null,null,null,null,null,null,null,null,null,0,0,"",null,""]
[null,null,null,null,null,null,null,null,null,null,null,null,null,null,null,null,null,null,0,0,"",null,""]
[null,null,null,null,null,null,null,null,null,null,null,null,null,null,null,null,null,null,0,0,"",null,""]
[null,null,null,null,null,null,null,null,null,null,null,null,null,null,null,null,null,null,0,0,"",null,""]
[null,null,null,null,null,null,null,null,null,null,null,null,null,null,null,null,null,null,0,0,"",null,""]
[null,null,null,null,null,null,null,null,null,null,null,null,null,null,null,null,null,null,0,0,"",null,""]
[null,null,null,null,null,null,null,null,null,null,null,null,null,null,null,null,null,null,0,0,"",null,""]
[null,null,null,null,null,null,null,null,null,null,null,null,null,null,null,null,null,null,0,0,"",null,""]
[null,null,null,null,null,null,null,null,null,null,null,null,null,null,null,null,null,null,0,0,"",null,""]
[null,null,null,null,null,null,null,null,null,null,null,null,null,null,null,null,null,null,0,0,"",null,""]
[null,null,null,null,null,null,null,null,null,null,null,null,null,null,null,null,null,null,0,0,"",null,""]
[null,null,null,null,null,null,null,null,null,null,null,null,null,null,null,null,null,null,0,0,"",null,""]
[null,null,null,null,null,null,null,null,null,null,null,null,null,null,null,null,null,null,0,0,"",null,""]
[null,null,null,null,null,null,null,null,null,null,null,null,null,null,null,null,null,null,0,0,"",null,""]
[null,null,null,null,null,null,null,null,null,null,null,null,null,null,null,null,null,null,0,0,"",null,""]
[null,null,null,null,null,null,null,null,null,null,null,null,null,null,null,null,null,null,0,0,"",null,""]
[null,null,null,null,null,null,null,null,null,null,null,null,null,null,null,null,null,null,0,0,"",null,""]
[null,null,null,null,null,null,null,null,null,null,null,null,null,null,null,null,null,null,0,0,"",null,""]
[null,null,null,null,null,null,null,null,null,null,null,null,null,null,null,null,null,null,0,0,"",null,""]
[null,null,null,null,null,null,null,null,null,null,null,null,null,null,null,null,null,null,0,0,"",null,""]
[null,null,null,null,null,null,null,null,null,null,null,null,null,null,null,null,null,null,0,0,"",null,""]
[null,null,null,null,null,null,null,null,null,null,null,null,null,null,null,null,null,null,0,0,"",null,""]
[null,null,null,null,null,null,null,null,null,null,null,null,null,null,null,null,null,null,0,0,"",null,""]
[null,null,null,null,null,null,null,null,null,null,null,null,null,null,null,null,null,null,0,0,"",null,""]
[null,null,null,null,null,null,null,null,null,null,null,null,null,null,null,null,null,null,0,0,"",null,""]
[null,null,null,null,null,null,null,null,null,null,null,null,null,null,null,null,null,null,0,0,"",null,""]
[null,null,null,null,null,null,null,null,null,null,null,null,null,null,null,null,null,null,0,0,"",null,""]
[null,null,null,null,null,null,null,null,null,null,null,null,null,null,null,null,null,null,0,0,"",null,""]
[null,null,null,null,null,null,null,null,null,null,null,null,null,null,null,null,null,null,0,0,"",null,""]
[null,null,null,null,null,null,null,null,null,null,null,null,null,null,null,null,null,null,0,0,"",null,""]
[null,null,null,null,null,null,null,null,null,null,null,null,null,null,null,null,null,null,0,0,"",null,""]
[null,null,null,null,null,null,null,null,null,null,null,null,null,null,null,null,null,null,0,0,"",null,""]
[null,null,null,null,null,null,null,null,null,null,null,null,null,null,null,null,null,null,0,0,"",null,""]
[null,null,null,null,null,null,null,null,null,null,null,null,null,null,null,null,null,null,0,0,"",null,""]
[null,null,null,null,null,null,null,null,null,null,null,null,null,null,null,null,null,null,0,0,"",null,""]
[null,null,null,null,null,null,null,null,null,null,null,null,null,null,null,null,null,null,0,0,"",null,""]
[null,null,null,null,null,null,null,null,null,null,null,null,null,null,null,null,null,null,0,0,"",null,""]
[null,null,null,null,null,null,null,null,null,null,null,null,null,null,null,null,null,null,0,0,"",null,{"$f":"IF(OR(O498=60,P498>B498+4),60,\"\")","v":""}]
[null,null,null,null,null,null,null,null,null,null,null,null,null,null,null,null,null,null,0,0,"",null,""]
[null,null,null,null,null,null,null,null,null,null,null,null,null,null,null,null,null,null,0,0,"",null,""]
[null,null,null,null,null,null,null,null,null,null,null,null,null,null,null,null,null,null,0,0,"",null,""]
[null,null,null,null,null,null,null,null,null,null,null,null,null,null,null,null,null,null,0,0,"",null,""]
[null,null,null,null,null,null,null,null,null,null,null,null,null,null,null,null,null,null,0,0,"",null,""]
[null,null,null,null,null,null,null,null,null,null,null,null,null,null,null,null,null,null,0,0,"",null,""]
[null,null,null,null,null,null,null,null,null,null,null,null,null,null,null,null,null,null,0,0,"",null,""]
[null,null,null,null,null,null,null,null,null,null,null,null,null,null,null,null,null,null,0,0,"",null,""]
[null,null,null,null,null,null,null,null,null,null,null,null,null,null,null,null,null,null,0,0,"",null,""]
[null,null,null,null,null,null,null,null,null,null,null,null,null,null,null,null,null,null,0,0,"",null,""]
[null,null,null,null,null,null,null,null,null,null,null,null,null,null,null,null,null,null,0,0,"",null,""]
[null,null,null,null,null,null,null,null,null,null,null,null,null,null,null,null,null,null,0,0,"",null,""]
[null,null,null,null,null,null,null,null,null,null,null,null,null,null,null,null,null,null,0,0,"",null,""]
[null,null,null,null,null,null,null,null,null,null,null,null,null,null,null,null,null,null,0,0,"",null,""]
[null,null,null,null,null,null,null,null,null,null,null,null,null,null,null,null,null,null,0,0,"",null,""]
[null,null,null,null,null,null,null,null,null,null,null,null,null,null,null,null,null,null,0,0,"",null,""]
[null,null,null,null,null,null,null,null,null,null,null,null,null,null,null,null,null,null,0,0,"",null,""]
[null,null,null,null,null,null,null,null,null,null,null,null,null,null,null,null,null,null,0,0,"",null,""]
[null,null,null,null,null,null,null,null,null,null,null,null,null,null,null,null,null,null,0,0,"",null,""]
[null,null,null,null,null,null,null,null,null,null,null,null,null,null,null,null,null,null,0,0,"",null,""]
[null,null,null,null,null,null,null,null,null,null,null,null,null,null,null,null,null,null,0,0,"",null,""]
[null,null,null,null,null,null,null,null,null,null,null,null,null,null,null,null,null,null,0,0,"",null,""]
[null,null,null,null,null,null,null,null,null,null,null,null,null,null,null,null,null,null,0,0,"",null,""]
[null,null,null,null,null,null,null,null,null,null,null,null,null,null,null,null,null,null,{"$f":"MAX(O522,P522)","v":0},{"$f":"S522-B522","v":0},"",null,""]
[null,null,null,null,null,null,null,null,null,null,null,null,null,null,null,null,null,null,0,0,{"$f":"IF(J523>0,60,\"\")","v":""},null,""]
[null,null,null,null,null,null,null,null,null,null,null,null,null,null,null,null,null,null,0,0,"",null,""]
[null,null,null,null,null,null,null,null,null,null,null,null,null,null,null,null,null,null,0,0,"",null,""]
[null,null,null,null,null,null,null,null,null,null,null,null,null,null,null,null,null,null,0,0,"",null,""]
[null,null,null,null,null,null,null,null,null,null,null,null,null,null,null,null,null,null,0,0,"",null,""]
[null,null,null,null,null,null,null,null,null,null,null,null,null,null,null,null,null,null,0,0,"",null,""]
[null,null,null,null,null,null,null,null,null,null,null,null,null,null,null,null,null,null,0,0,"",null,""]
[null,null,null,null,null,null,null,null,null,null,null,null,null,null,null,null,null,null,0,0,"",null,""]
[null,null,null,null,null,null,null,null,null,null,null,null,null,null,null,null,null,null,0,0,"",null,""]
[null,null,null,null,null,null,null,null,null,null,null,null,null,null,null,null,null,null,0,0,"",null,""]
[null,null,null,null,null,null,null,null,null,null,null,null,null,null,null,null,null,null,0,0,"",null,""]
[null,null,null,null,null,null,null,null,null,null,null,null,null,null,null,null,null,null,0,0,"",null,""]
[null,null,null,null,null,null,null,null,null,null,null,null,null,null,null,null,null,null,0,0,"",null,""]
[null,null,null,null,null,null,null,null,null,null,null,null,null,null,null,null,null,null,0,0,"",null,""]
[null,null,null,null,null,null,null,null,null,null,null,null,null,null,null,null,null,null,0,0,"",null,""]
[null,null,null,null,null,null,null,null,null,null,null,null,null,null,null,null,null,null,0,0,"",null,""]
[null,null,null,null,null,null,null,null,null,null,null,null,null,null,null,null,null,null,0,0,"",null,""]
[null,null,null,null,null,null,null,null,null,null,null,null,null,null,null,null,null,null,0,0,"",null,""]
[null,null,null,null,null,null,null,null,null,null,null,null,null,null,null,null,null,null,0,0,"",null,""]
[null,null,null,null,null,null,null,null,null,null,null,null,null,null,null,null,null,null,0,0,"",null,""]
[null,null,null,null,null,null,null,null,null,null,null,null,null,null,null,null,null,null,0,0,"",null,""]
[null,null,null,null,null,null,null,null,null,null,null,null,null,null,null,null,null,null,0,0,"",null,""]
[null,null,null,null,null,null,null,null,null,null,null,null,null,null,null,null,null,null,0,0,"",null,""]
[null,null,null,null,null,null,null,null,null,null,null,null,null,null,null,null,null,null,0,0,"",null,""]
[null,null,null,null,null,null,null,null,null,null,null,null,null,null,null,null,null,null,0,0,"",null,""]
[null,null,null,null,null,null,null,null,null,null,null,null,null,null,null,null,null,null,0,0,"",null,""]
[null,null,null,null,null,null,null,null,null,null,null,null,null,null,null,null,null,null,0,0,"",null,""]
[null,null,null,null,null,null,null,null,null,null,null,null,null,null,null,null,null,null,0,0,"",null,""]
[null,null,null,null,null,null,null,null,null,null,null,null,null,null,null,null,null,null,0,0,"",null,""]
[null,null,null,null,null,null,null,null,null,null,null,null,null,null,null,null,null,null,0,0,"",null,""]
[null,null,null,null,null,null,null,null,null,null,null,null,null,null,null,null,null,null,0,0,"",null,""]
[null,null,null,null,null,null,null,null,null,null,null,null,null,null,null,null,null,null,0,0,"",null,""]
[null,null,null,null,null,null,null,null,null,null,null,null,null,null,null,null,null,null,0,0,"",null,""]
[null,null,null,null,null,null,null,null,null,null,null,null,null,null,null,null,null,null,0,0,"",null,""]
[null,null,null,null,null,null,null,null,null,null,null,null,null,null,null,null,null,null,0,0,"",null,""]
[null,null,null,null,null,null,null,null,null,null,null,null,null,null,null,null,null,null,0,0,"",null,""]
[null,null,null,null,null,null,null,null,null,null,null,null,null,null,null,null,null,null,0,0,"",null,""]
[null,null,null,null,null,null,null,null,null,null,null,null,null,null,null,null,null,null,0,0,"",null,""]
[null,null,null,null,null,null,null,null,null,null,null,null,null,null,null,null,null,null,0,0,"",null,""]
[null,null,null,null,null,null,null,null,null,null,null,null,null,null,null,null,null,null,0,0,"",null,{"$f":"IF(OR(O562=60,P562>B562+4),60,\"\")","v":""}]
[null,null,null,null,null,null,null,null,null,null,null,null,null,null,null,null,null,null,0,0,"",null,""]
[null,null,null,null,null,null,null,null,null,null,null,null,null,null,null,null,null,null,0,0,"",null,""]
[null,null,null,null,null,null,null,null,null,null,null,null,null,null,null,null,null,null,0,0,"",null,""]
[null,null,null,null,null,null,null,null,null,null,null,null,null,null,null,null,null,null,0,0,"",null,""]
[null,null,null,null,null,null,null,null,null,null,null,null,null,null,null,null,null,null,0,0,"",null,""]
[null,null,null,null,null,null,null,null,null,null,null,null,null,null,null,null,null,null,0,0,"",null,""]
[null,null,null,null,null,null,null,null,null,null,null,null,null,null,null,null,null,null,0,0,{"$f":"IF(J569>0,60,\"\")","v":""},null,""]
[null,null,null,null,null,null,null,null,null,null,null,null,null,null,null,null,null,null,0,0,"",null,""]
[null,null,null,null,null,null,null,null,null,null,null,null,null,null,null,null,null,null,0,0,"",null,""]
[null,null,null,null,null,null,null,null,null,null,null,null,null,null,null,null,null,null,0,0,"",null,""]
[null,null,null,null,null,null,null,null,null,null,null,null,null,null,null,null,null,null,0,0,"",null,""]
[null,null,null,null,null,null,null,null,null,null,null,null,null,null,null,null,null,null,0,0,"",null,""]
[null,null,null,null,null,null,null,null,null,null,null,null,null,null,null,null,null,null,0,0,"",null,""]
[null,null,null,null,null,null,null,null,null,null,null,null,null,null,null,null,null,null,0,0,"",null,""]
[null,null,null,null,null,null,null,null,null,null,null,null,null,null,null,null,null,null,0,0,"",null,""]
[null,null,null,null,null,null,null,null,null,null,null,null,null,null,null,null,null,null,0,0,"",null,""]
[null,null,null,null,null,null,null,null,null,null,null,null,null,null,null,null,null,null,0,0,"",null,""]
[null,null,null,null,null,null,null,null,null,null,null,null,null,null,null,null,null,null,0,0,"",null,""]
[null,null,null,null,null,null,null,null,null,null,null,null,null,null,null,null,null,null,0,0,"",null,""]
[null,null,null,null,null,null,null,null,null,null,null,null,null,null,null,null,null,null,0,0,"",null,""]
[null,null,null,null,null,null,null,null,null,null,null,null,null,null,null,null,null,null,0,0,"",null,""]
[null,null,null,null,null,null,null,null,null,null,null,null,null,null,null,null,null,null,0,0,"",null,""]
[null,null,null,null,null,null,null,null,null,null,null,null,null,null,null,null,null,null,0,0,"",null,""]
[null,null,null,null,null,null,null,null,null,null,null,null,null,null,null,null,null,null,{"$f":"MAX(O586,P586)","v":0},{"$f":"S586-B586","v":0},"",null,""]
[null,null,null,null,null,null,null,null,null,null,null,null,null,null,null,null,null,null,0,0,{"$f":"IF(J587>0,60,\"\")","v":""},null,""]
[null,null,null,null,null,null,null,null,null,null,null,null,null,null,null,null,null,null,0,0,"",null,""]
[null,null,null,null,null,null,null,null,null,null,null,null,null,null,null,null,null,null,0,0,"",null,""]
[null,null,null,null,null,null,null,null,null,null,null,null,null,null,null,null,null,null,0,0,"",null,""]
[null,null,null,null,null,null,null,null,null,null,null,null,null,null,null,null,null,null,0,0,"",null,""]
[null,null,null,null,null,null,null,null,null,null,null,null,null,null,null,null,null,null,0,0,"",null,""]
[null,null,null,null,null,null,null,null,null,null,null,null,null,null,null,null,null,null,0,0,"",null,""]
[null,null,null,null,null,null,null,null,null,null,null,null,null,null,null,null,null,null,0,0,"",null,""]
[null,null,null,null,null,null,null,null,null,null,null,null,null,null,null,null,null,null,0,0,"",null,""]
[null,null,null,null,null,null,null,null,null,null,null,null,null,null,null,null,null,null,0,0,"",null,""]
[null,null,null,null,null,null,null,null,null,null,null,null,null,null,null,null,null,null,0,0,"",null,""]
[null,null,null,null,null,null,null,null,null,null,null,null,null,null,null,null,null,null,0,0,"",null,""]
[null,null,null,null,null,null,null,null,null,null,null,null,null,null,null,null,null,null,0,0,"",null,""]
[null,null,null,null,null,null,null,null,null,null,null,null,null,null,null,null,null,null,0,0,"",null,""]
[null,null,null,null,null,null,null,null,null,null,null,null,null,null,null,null,null,null,0,0,"",null,""]
[null,null,null,null,null,null,null,null,null,null,null,null,null,null,null,null,null,null,0,0,"",null,""]
[null,null,null,null,null,null,null,null,null,null,null,null,null,null,null,null,null,null,0,0,"",null,""]
[null,null,null,null,null,null,null,null,null,null,null,null,null,null,null,null,null,null,0,0,"",null,""]
[null,null,null,null,null,null,null,null,null,null,null,null,null,null,null,null,null,null,0,0,"",null,""]
[null,null,null,null,null,null,null,null,null,null,null,null,null,null,null,null,null,null,0,0,"",null,""]
[null,null,null,null,null,null,null,null,null,null,null,null,null,null,null,null,null,null,0,0,"",null,""]
[null,null,null,null,null,null,null,null,null,null,null,null,null,null,null,null,null,null,0,0,"",null,""]
[null,null,null,null,null,null,null,null,null,null,null,null,null,null,null,null,null,null,0,0,"",null,""]
[null,null,null,null,null,null,null,null,null,null,null,null,null,null,null,null,null,null,0,0,"",null,""]
[null,null,null,null,null,null,null,null,null,null,null,null,null,null,null,null,null,null,0,0,"",null,""]
[null,null,null,null,null,null,null,null,null,null,null,null,null,null,null,null,null,null,0,0,"",null,""]
[null,null,null,null,null,null,null,null,null,null,null,null,null,null,null,null,null,null,0,0,"",null,""]
[null,null,null,null,null,null,null,null,null,null,null,null,null,null,null,null,null,null,0,0,"",null,""]
[null,null,null,null,null,null,null,null,null,null,null,null,null,null,null,null,null,null,0,0,"",null,""]
[null,null,null,null,null,null,null,null,null,null,null,null,null,null,null,null,null,null,0,0,"",null,""]
[null,null,null,null,null,null,null,null,null,null,null,null,null,null,null,null,null,null,0,0,"",null,""]
[null,null,null,null,null,null,null,null,null,null,null,null,null,null,null,null,null,null,0,0,"",null,""]
[null,null,null,null,null,null,null,null,null,null,null,null,null,null,null,null,null,null,0,0,"",null,""]
[null,null,null,null,null,null,null,null,null,null,null,null,null,null,null,null,null,null,0,0,"",null,""]
[null,null,null,null,null,null,null,null,null,null,null,null,null,null,null,null,null,null,0,0,"",null,""]
[null,null,null,null,null,null,null,null,null,null,null,null,null,null,null,null,null,null,0,0,"",null,""]
[null,null,null,null,null,null,null,null,null,null,null,null,null,null,null,null,null,null,0,0,"",null,""]
[null,null,null,null,null,null,null,null,null,null,null,null,null,null,null,null,null,null,0,0,"",null,""]
[null,null,null,null,null,null,null,null,null,null,null,null,null,null,null,null,null,null,0,0,"",null,""]
[null,null,null,null,null,null,null,null,null,null,null,null,null,null,null,null,null,null,0,0,"",null,{"$f":"IF(OR(O626=60,P626>B626+4),60,\"\")","v":""}]
[null,null,null,null,null,null,null,null,null,null,null,null,null,null,null,null,null,null,0,0,"",null,""]
[null,null,null,null,null,null,null,null,null,null,null,null,null,null,null,null,null,null,0,0,"",null,""]
[null,null,null,null,null,null,null,null,null,null,null,null,null,null,null,null,null,null,0,0,"",null,""]
[null,null,null,null,null,null,null,null,null,null,null,null,null,null,null,null,null,null,0,0,"",null,""]
[null,null,null,null,null,null,null,null,null,null,null,null,null,null,null,null,null,null,0,0,"",null,""]
[null,null,null,null,null,null,null,null,null,null,null,null,null,null,null,null,null,null,0,0,"",null,""]
[null,null,null,null,null,null,null,null,null,null,null,null,null,null,null,null,null,null,0,0,"",null,""]
[null,null,null,null,null,null,null,null,null,null,null,null,null,null,null,null,null,null,0,0,"",null,""]
[null,null,null,null,null,null,null,null,null,null,null,null,null,null,null,null,null,null,0,0,"",null,""]
[null,null,null,null,null,null,null,null,null,null,null,null,null,null,null,null,null,null,0,0,"",null,""]
[null,null,null,null,null,null,null,null,null,null,null,null,null,null,null,null,null,null,0,0,"",null,""]
[null,null,null,null,null,null,null,null,null,null,null,null,null,null,null,null,null,null,0,0,"",null,""]
[null,null,null,null,null,null,null,null,null,null,null,null,null,null,null,null,null,null,0,0,"",null,""]
[null,null,null,null,null,null,null,null,null,null,null,null,null,null,null,null,null,null,0,0,"",null,""]
[null,null,null,null,null,null,null,null,null,null,null,null,null,null,null,null,null,null,0,0,"",null,""]
[null,null,null,null,null,null,null,null,null,null,null,null,null,null,null,null,null,null,0,0,"",null,""]
[null,null,null,null,null,null,null,null,null,null,null,null,null,null,null,null,null,null,0,0,"",null,""]
[null,null,null,null,null,null,null,null,null,null,null,null,null,null,null,null,null,null,0,0,"",null,""]
[null,null,null,null,null,null,null,null,null,null,null,null,null,null,null,null,null,null,0,0,"",null,""]
[null,null,null,null,null,null,null,null,null,null,null,null,null,null,null,null,null,null,0,0,"",null,""]
[null,null,null,null,null,null,null,null,null,null,null,null,null,null,null,null,null,null,0,0,"",null,""]
[null,null,null,null,null,null,null,null,null,null,null,null,null,null,null,null,null,null,0,0,"",null,""]
[null,null,null,null,null,null,null,null,null,null,null,null,null,null,null,null,null,null,0,0,"",null,""]
[null,null,null,null,null,null,null,null,null,null,null,null,null,null,null,null,null,null,{"$f":"MAX(O650,P650)","v":0},{"$f":"S650-B650","v":0},"",null,""]
[null,null,null,null,null,null,null,null,null,null,null,null,null,null,null,null,null,null,0,0,{"$f":"IF(J651>0,60,\"\")","v":""},null,""]
[null,null,null,null,null,null,null,null,null,null,null,null,null,null,null,null,null,null,0,0,"",null,""]
[null,null,null,null,null,null,null,null,null,null,null,null,null,null,null,null,null,null,0,0,"",null,""]
[null,null,null,null,null,null,null,null,null,null,null,null,null,null,null,null,null,null,0,0,"",null,""]
[null,null,null,null,null,null,null,null,null,null,null,null,null,null,null,null,null,null,0,0,"",null,""]
[null,null,null,null,null,null,null,null,null,null,null,null,null,null,null,null,null,null,0,0,"",null,""]
[null,null,null,null,null,null,null,null,null,null,null,null,null,null,null,null,null,null,0,0,"",null,""]
[null,null,null,null,null,null,null,null,null,null,null,null,null,null,null,null,null,null,0,0,"",null,""]
[null,null,null,null,null,null,null,null,null,null,null,null,null,null,null,null,null,null,0,0,"",null,""]
[null,null,null,null,null,null,null,null,null,null,null,null,null,null,null,null,null,null,0,0,"",null,""]
[null,null,null,null,null,null,null,null,null,null,null,null,null,null,null,null,null,null,0,0,"",null,""]
[null,null,null,null,null,null,null,null,null,null,null,null,null,null,null,null,null,null,0,0,"",null,""]
[null,null,null,null,null,null,null,null,null,null,null,null,null,null,null,null,null,null,0,0,"",null,""]
[null,null,null,null,null,null,null,null,null,null,null,null,null,null,null,null,null,null,0,0,"",null,""]
[null,null,null,null,null,null,null,null,null,null,null,null,null,null,null,null,null,null,0,0,"",null,""]
[null,null,null,null,null,null,null,null,null,null,null,null,null,null,null,null,null,null,0,0,"",null,""]
[null,null,null,null,null,null,null,null,null,null,null,null,null,null,null,null,null,null,0,0,"",null,""]
[null,null,null,null,null,null,null,null,null,null,null,null,null,null,null,null,null,null,0,0,"",null,""]
[null,null,null,null,null,null,null,null,null,null,null,null,null,null,null,null,null,null,0,0,"",null,""]
[null,null,null,null,null,null,null,null,null,null,null,null,null,null,null,null,null,null,0,0,"",null,""]
[null,null,null,null,null,null,null,null,null,null,null,null,null,null,null,null,null,null,0,0,"",null,""]
[null,null,null,null,null,null,null,null,null,null,null,null,null,null,null,null,null,null,0,0,"",null,""]
[null,null,null,null,null,null,null,null,null,null,null,null,null,null,null,null,null,null,0,0,"",null,""]
[null,null,null,null,null,null,null,null,null,null,null,null,null,null,null,null,null,null,0,0,"",null,""]
[null,null,null,null,null,null,null,null,null,null,null,null,null,null,null,null,null,null,0,0,"",null,""]
[null,null,null,null,null,null,null,null,null,null,null,null,null,null,null,null,null,null,0,0,"",null,""]
[null,null,null,null,null,null,null,null,null,null,null,null,null,null,null,null,null,null,0,0,"",null,""]
[null,null,null,null,null,null,null,null,null,null,null,null,null,null,null,null,null,null,0,0,"",null,""]
[null,null,null,null,null,null,null,null,null,null,null,null,null,null,null,null,null,null,0,0,"",null,""]
[null,null,null,null,null,null,null,null,null,null,null,null,null,null,null,null,null,null,0,0,"",null,""]
[null,null,null,null,null,null,null,null,null,null,null,null,null,null,null,null,null,null,0,0,"",null,""]
[null,null,null,null,null,null,null,null,null,null,null,null,null,null,null,null,null,null,0,0,"",null,""]
[null,null,null,null,null,null,null,null,null,null,null,null,null,null,null,null,null,null,0,0,"",null,""]
[null,null,null,null,null,null,null,null,null,null,null,null,null,null,null,null,null,null,0,0,"",null,""]
[null,null,null,null,null,null,null,null,null,null,null,null,null,null,null,null,null,null,0,0,"",null,""]
[null,null,null,null,null,null,null,null,null,null,null,null,null,null,null,null,null,null,0,0,"",null,""]
[null,null,null,null,null,null,null,null,null,null,null,null,null,null,null,null,null,null,0,0,"",null,""]
[null,null,null,null,null,null,null,null,null,null,null,null,null,null,null,null,null,null,0,0,"",null,""]
[null,null,null,null,null,null,null,null,null,null,null,null,null,null,null,null,null,null,0,0,"",null,""]
[null,null,null,null,null,null,null,null,null,null,null,null,null,null,null,null,null,null,0,0,"",null,{"$f":"IF(OR(O690=60,P690>B690+4),60,\"\")","v":""}]
[null,null,null,null,null,null,null,null,null,null,null,null,null,null,null,null,null,null,0,0,"",null,""]
[null,null,null,null,null,null,null,null,null,null,null,null,null,null,null,null,null,null,0,0,"",null,""]
[null,null,null,null,null,null,null,null,null,null,null,null,null,null,null,null,null,null,0,0,"",null,""]
[null,null,null,null,null,null,null,null,null,null,null,null,null,null,null,null,null,null,0,0,"",null,""]
[null,null,null,null,null,null,null,null,null,null,null,null,null,null,null,null,null,null,0,0,"",null,""]
[null,null,null,null,null,null,null,null,null,null,null,null,null,null,null,null,null,null,0,0,"",null,""]
[null,null,null,null,null,null,null,null,null,null,null,null,null,null,null,null,null,null,0,0,"",null,""]
[null,null,null,null,null,null,null,null,null,null,null,null,null,null,null,null,null,null,0,0,"",null,""]
[null,null,null,null,null,null,null,null,null,null,null,null,null,null,null,null,null,null,0,0,"",null,""]
[null,null,null,null,null,null,null,null,null,null,null,null,null,null,null,null,null,null,0,0,"",null,""]
[null,null,null,null,null,null,null,null,null,null,null,null,null,null,null,null,null,null,0,0,"",null,""]
[null,null,null,null,null,null,null,null,null,null,null,null,null,null,null,null,null,null,0,0,"",null,""]
[null,null,null,null,null,null,null,null,null,null,null,null,null,null,null,null,null,null,0,0,"",null,""]
[null,null,null,null,null,null,null,null,null,null,null,null,null,null,null,null,null,null,0,0,"",null,""]
[null,null,null,null,null,null,null,null,null,null,null,null,null,null,null,null,null,null,0,0,"",null,""]
[null,null,null,null,null,null,null,null,null,null,null,null,null,null,null,null,null,null,0,0,"",null,""]
[null,null,null,null,null,null,null,null,null,null,null,null,null,null,null,null,null,null,0,0,"",null,""]
[null,null,null,null,null,null,null,null,null,null,null,null,null,null,null,null,null,null,0,0,"",null,""]
[null,null,null,null,null,null,null,null,null,null,null,null,null,null,null,null,null,null,0,0,"",null,""]
[null,null,null,null,null,null,null,null,null,null,null,null,null,null,null,null,null,null,0,0,"",null,""]
[null,null,null,null,null,null,null,null,null,null,null,null,null,null,null,null,null,null,0,0,"",null,""]
[null,null,null,null,null,null,null,null,null,null,null,null,null,null,null,null,null,null,0,0,"",null,""]
[null,null,null,null,null,null,null,null,null,null,null,null,null,null,null,null,null,null,0,0,"",null,""]
[null,null,null,null,null,null,null,null,null,null,null,null,null,null,null,null,null,null,{"$f":"MAX(O714,P714)","v":0},{"$f":"S714-B714","v":0},"",null,""]
[null,null,null,null,null,null,null,null,null,null,null,null,null,null,null,null,null,null,0,0,{"$f":"IF(J715>0,60,\"\")","v":""},null,""]
[null,null,null,null,null,null,null,null,null,null,null,null,null,null,null,null,null,null,0,0,"",null,""]
[null,null,null,null,null,null,null,null,null,null,null,null,null,null,null,null,null,null,0,0,"",null,""]
[null,null,null,null,null,null,null,null,null,null,null,null,null,null,null,null,null,null,0,0,"",null,""]
[null,null,null,null,null,null,null,null,null,null,null,null,null,null,null,null,null,null,0,0,"",null,{"$f":"IF(OR(O719=60,P719>B719+4),60,\"\")","v":""}]
[null,null,null,null,null,null,null,null,null,null,null,null,null,null,null,null,null,null,0,0,"",null,""]
[null,null,null,null,null,null,null,null,null,null,null,null,null,null,null,null,null,null,0,0,"",null,""]
[null,null,null,null,null,null,null,null,null,null,null,null,null,null,null,null,null,null,0,0,"",null,""]
[null,null,null,null,null,null,null,null,null,null,null,null,null,null,null,null,null,null,0,0,"",null,""]
[null,null,null,null,null,null,null,null,null,null,null,null,null,null,null,null,null,null,0,0,"",null,""]
[null,null,null,null,null,null,null,null,null,null,null,null,null,null,null,null,null,null,0,0,"",null,""]
[null,null,null,null,null,null,null,null,null,null,null,null,null,null,null,null,null,null,0,0,"",null,""]
[null,null,null,null,null,null,null,null,null,null,null,null,null,null,null,null,null,null,0,0,"",null,""]
[null,null,null,null,null,null,null,null,null,null,null,null,null,null,null,null,null,null,0,0,"",null,""]
[null,null,null,null,null,null,null,null,null,null,null,null,null,null,null,null,null,null,0,0,"",null,""]
[null,null,null,null,null,null,null,null,null,null,null,null,null,null,null,null,null,null,0,0,"",null,""]
[null,null,null,null,null,null,null,null,null,null,null,null,null,null,null,null,null,null,0,0,"",null,""]
[null,null,null,null,null,null,null,null,null,null,null,null,null,null,null,null,null,null,0,0,"",null,""]
[null,null,null,null,null,null,null,null,null,null,null,null,null,null,null,null,null,null,{"$f":"MAX(O733,P733)","v":0},{"$f":"S733-B733","v":0},"",null,""]
[null,null,null,null,null,null,null,null,null,null,null,null,null,null,null,null,null,null,0,0,"",null,""]
[null,null,null,null,null,null,null,null,null,null,null,null,null,null,null,null,null,null,0,0,"",null,""]
[null,null,null,null,null,null,null,null,null,null,null,null,null,null,null,null,null,null,0,0,"",null,""]
[null,null,null,null,null,null,null,null,null,null,null,null,null,null,null,null,null,null,0,0,"",null,""]
[null,null,null,null,null,null,null,null,null,null,null,null,null,null,null,null,null,null,0,0,"",null,""]
[null,null,null,null,null,null,null,null,null,null,null,null,null,null,null,null,null,null,0,0,"",null,""]
[null,null,null,null,null,null,null,null,null,null,null,null,null,null,null,null,null,null,0,0,"",null,""]
[null,null,null,null,null,null,null,null,null,null,null,null,null,null,null,null,null,null,0,0,"",null,""]
[null,null,null,null,null,null,null,null,null,null,null,null,null,null,null,null,null,null,0,0,"",null,""]
[null,null,null,null,null,null,null,null,null,null,null,null,null,null,null,null,null,null,0,0,"",null,""]
[null,null,null,null,null,null,null,null,null,null,null,null,null,null,null,null,null,null,0,0,"",null,""]
[null,null,null,null,null,null,null,null,null,null,null,null,null,null,null,null,null,null,0,0,"",null,""]
[null,null,null,null,null,null,null,null,null,null,null,null,null,null,null,null,null,null,0,0,"",null,""]
[null,null,null,null,null,null,null,null,null,null,null,null,null,null,null,null,null,null,0,0,"",null,""]
[null,null,null,null,null,null,null,null,null,null,null,null,null,null,null,null,null,null,0,0,"",null,""]
[null,null,null,null,null,null,null,null,null,null,null,null,null,null,null,null,null,null,0,0,"",null,""]
[null,null,null,null,null,null,null,null,null,null,null,null,null,null,null,null,null,null,0,0,"",null,""]
[null,null,null,null,null,null,null,null,null,null,null,null,null,null,null,null,null,null,0,0,"",null,""]
[null,null,null,null,null,null,null,null,null,null,null,null,null,null,null,null,null,null,0,0,"",null,""]
[null,null,null,null,null,null,null,null,null,null,null,null,null,null,null,null,null,null,0,0,"",null,""]
[null,null,null,null,null,null,null,null,null,null,null,null,null,null,null,null,null,null,0,0,"",null,{"$f":"IF(OR(O754=60,P754>B754+4),60,\"\")","v":""}]
[null,null,null,null,null,null,null,null,null,null,null,null,null,null,null,null,null,null,0,0,"",null,""]
[null,null,null,null,null,null,null,null,null,null,null,null,null,null,null,null,null,null,0,0,"",null,""]
[null,null,null,null,null,null,null,null,null,null,null,null,null,null,null,null,null,null,0,0,"",null,""]
[null,null,null,null,null,null,null,null,null,null,null,null,null,null,null,null,null,null,0,0,"",null,""]
[null,null,null,null,null,null,null,null,null,null,null,null,null,null,null,null,null,null,0,0,"",null,""]
[null,null,null,null,null,null,null,null,null,null,null,null,null,null,null,null,null,null,0,0,"",null,""]
[null,null,null,null,null,null,null,null,null,null,null,null,null,null,null,null,null,null,0,0,"",null,""]
[null,null,null,null,null,null,null,null,null,null,null,null,null,null,null,null,null,null,0,0,"",null,""]
[null,null,null,null,null,null,null,null,null,null,null,null,null,null,null,null,null,null,0,0,"",null,""]
[null,null,null,null,null,null,null,null,null,null,null,null,null,null,null,null,null,null,0,0,"",null,""]
[null,null,null,null,null,null,null,null,null,null,null,null,null,null,null,null,null,null,0,0,"",null,""]
[null,null,null,null,null,null,null,null,null,null,null,null,null,null,null,null,null,null,0,0,"",null,""]
[null,null,null,null,null,null,null,null,null,null,null,null,null,null,null,null,null,null,0,0,"",null,""]
[null,null,null,null,null,null,null,null,null,null,null,null,null,null,null,null,null,null,0,0,"",null,""]
[null,null,null,null,null,null,null,null,null,null,null,null,null,null,null,null,null,null,0,0,"",null,""]
[null,null,null,null,null,null,null,null,null,null,null,null,null,null,null,null,null,null,0,0,"",null,""]
[null,null,null,null,null,null,null,null,null,null,null,null,null,null,null,null,null,null,0,0,"",null,""]
[null,null,null,null,null,null,null,null,null,null,null,null,null,null,null,null,null,null,0,0,"",null,""]
[null,null,null,null,null,null,null,null,null,null,null,null,null,null,null,null,null,null,0,0,"",null,""]
[null,null,null,null,null,null,null,null,null,null,null,null,null,null,null,null,null,null,0,0,"",null,""]
[null,null,null,null,null,null,null,null,null,null,null,null,null,null,null,null,null,null,0,0,"",null,""]
[null,null,null,null,null,null,null,null,null,null,null,null,null,null,null,null,null,null,0,0,"",null,""]
[null,null,null,null,null,null,null,null,null,null,null,null,null,null,null,null,null,null,0,0,{"$f":"IF(J777>0,60,\"\")","v":""},null,""]
[null,null,null,null,null,null,null,null,null,null,null,null,null,null,null,null,null,null,{"$f":"MAX(O778,P778)","v":0},{"$f":"S778-B778","v":0},"",null,""]
[null,null,null,null,null,null,null,null,null,null,null,null,null,null,null,null,null,null,0,0,{"$f":"IF(J779>0,60,\"\")","v":""},null,""]
[null,null,null,null,null,null,null,null,null,null,null,null,null,null,null,null,null,null,0,0,"",null,""]
[null,null,null,null,null,null,null,null,null,null,null,null,null,null,null,null,null,null,0,0,"",null,""]
[null,null,null,null,null,null,null,null,null,null,null,null,null,null,null,null,null,null,0,0,"",null,""]
[null,null,null,null,null,null,null,null,null,null,null,null,null,null,null,null,null,null,0,0,"",null,""]
[null,null,null,null,null,null,null,null,null,null,null,null,null,null,null,null,null,null,0,0,"",null,""]
[null,null,null,null,null,null,null,null,null,null,null,null,null,null,null,null,null,null,0,0,"",null,""]
[null,null,null,null,null,null,null,null,null,null,null,null,null,null,null,null,null,null,0,0,"",null,""]
[null,null,null,null,null,null,null,null,null,null,null,null,null,null,null,null,null,null,0,0,"",null,""]
[null,null,null,null,null,null,null,null,null,null,null,null,null,null,null,null,null,null,0,0,"",null,""]
[null,null,null,null,null,null,null,null,null,null,null,null,null,null,null,null,null,null,0,0,"",null,""]
[null,null,null,null,null,null,null,null,null,null,null,null,null,null,null,null,null,null,0,0,"",null,""]
[null,null,null,null,null,null,null,null,null,null,null,null,null,null,null,null,null,null,0,0,"",null,""]
[null,null,null,null,null,null,null,null,null,null,null,null,null,null,null,null,null,null,0,0,"",null,""]
[null,null,null,null,null,null,null,null,null,null,null,null,null,null,null,null,null,null,0,0,"",null,""]
[null,null,null,null,null,null,null,null,null,null,null,null,null,null,null,null,null,null,0,0,"",null,""]
[null,null,null,null,null,null,null,null,null,null,null,null,null,null,null,null,null,null,0,0,"",null,""]
[null,null,null,null,null,null,null,null,null,null,null,null,null,null,null,null,null,null,0,0,"",null,""]
[null,null,null,null,null,null,null,null,null,null,null,null,null,null,null,null,null,null,0,0,"",null,""]
[null,null,null,null,null,null,null,null,null,null,null,null,null,null,null,null,null,null,0,0,"",null,""]
[null,null,null,null,null,null,null,null,null,null,null,null,null,null,null,null,null,null,0,0,"",null,""]
[null,null,null,null,null,null,null,null,null,null,null,null,null,null,null,null,null,null,0,0,"",null,""]
[null,null,null,null,null,null,null,null,null,null,null,null,null,null,null,null,null,null,0,0,"",null,""]
[null,null,null,null,null,null,null,null,null,null,null,null,null,null,null,null,null,null,0,0,"",null,""]
[null,null,null,null,null,null,null,null,null,null,null,null,null,null,null,null,null,null,0,0,"",null,""]
[null,null,null,null,null,null,null,null,null,null,null,null,null,null,null,null,null,null,0,0,"",null,""]
[null,null,null,null,null,null,null,null,null,null,null,null,null,null,null,null,null,null,0,0,"",null,""]
[null,null,null,null,null,null,null,null,null,null,null,null,null,null,null,null,null,null,0,0,"",null,""]
[null,null,null,null,null,null,null,null,null,null,null,null,null,null,null,null,null,null,0,0,"",null,""]
[null,null,null,null,null,null,null,null,null,null,null,null,null,null,null,null,null,null,0,0,"",null,""]
[null,null,null,null,null,null,null,null,null,null,null,null,null,null,null,null,null,null,0,0,"",null,""]
[null,null,null,null,null,null,null,null,null,null,null,null,null,null,null,null,null,null,0,0,"",null,""]
[null,null,null,null,null,null,null,null,null,null,null,null,null,null,null,null,null,null,0,0,"",null,""]
[null,null,null,null,null,null,null,null,null,null,null,null,null,null,null,null,null,null,0,0,"",null,""]
[null,null,null,null,null,null,null,null,null,null,null,null,null,null,null,null,null,null,0,0,"",null,""]
[null,null,null,null,null,null,null,null,null,null,null,null,null,null,null,null,null,null,0,0,"",null,""]
[null,null,null,null,null,null,null,null,null,null,null,null,null,null,null,null,null,null,0,0,"",null,""]
[null,null,null,null,null,null,null,null,null,null,null,null,null,null,null,null,null,null,0,0,"",null,""]
[null,null,null,null,null,null,null,null,null,null,null,null,null,null,null,null,null,null,0,0,"",null,""]
[null,null,null,null,null,null,null,null,null,null,null,null,null,null,null,null,null,null,0,0,"",null,{"$f":"IF(OR(O818=60,P818>B818+4),60,\"\")","v":""}]
[null,null,null,null,null,null,null,null,null,null,null,null,null,null,null,null,null,null,0,0,"",null,""]
[null,null,null,null,null,null,null,null,null,null,null,null,null,null,null,null,null,null,0,0,"",null,""]
[null,null,null,null,null,null,null,null,null,null,null,null,null,null,null,null,null,null,0,0,"",null,""]
[null,null,null,null,null,null,null,null,null,null,null,null,null,null,null,null,null,null,0,0,"",null,""]
[null,null,null,null,null,null,null,null,null,null,null,null,null,null,null,null,null,null,0,0,"",null,""]
[null,null,null,null,null,null,null,null,null,null,null,null,null,null,null,null,null,null,0,0,"",null,""]
[null,null,null,null,null,null,null,null,null,null,null,null,null,null,null,null,null,null,0,0,"",null,""]
[null,null,null,null,null,null,null,null,null,null,null,null,null,null,null,null,null,null,0,0,"",null,""]
[null,null,null,null,null,null,null,null,null,null,null,null,null,null,null,null,null,null,0,0,"",null,""]
[null,null,null,null,null,null,null,null,null,null,null,null,null,null,null,null,null,null,0,0,"",null,""]
[null,null,null,null,null,null,null,null,null,null,null,null,null,null,null,null,null,null,0,0,"",null,""]
[null,null,null,null,null,null,null,null,null,null,null,null,null,null,null,null,null,null,0,0,"",null,""]
[null,null,null,null,null,null,null,null,null,null,null,null,null,null,null,null,null,null,0,0,"",null,""]
[null,null,null,null,null,null,null,null,null,null,null,null,null,null,null,null,null,null,0,0,"",null,""]
[null,null,null,null,null,null,null,null,null,null,null,null,null,null,null,null,null,null,0,0,"",null,""]
[null,null,null,null,null,null,null,null,null,null,null,null,null,null,null,null,null,null,0,0,"",null,""]
[null,null,null,null,null,null,null,null,null,null,null,null,null,null,null,null,null,null,0,0,"",null,""]
[null,null,null,null,null,null,null,null,null,null,null,null,null,null,null,null,null,null,0,0,"",null,""]
[null,null,null,null,null,null,null,null,null,null,null,null,null,null,null,null,null,null,0,0,"",null,""]
[null,null,null,null,null,null,null,null,null,null,null,null,null,null,null,null,null,null,0,0,"",null,""]
[null,null,null,null,null,null,null,null,null,null,null,null,null,null,null,null,null,null,0,0,"",null,""]
[null,null,null,null,null,null,null,null,null,null,null,null,null,null,null,null,null,null,0,0,"",null,""]
[null,null,null,null,null,null,null,null,null,null,null,null,null,null,null,null,null,null,0,0,"",null,""]
[null,null,null,null,null,null,null,null,null,null,null,null,null,null,null,null,null,null,{"$f":"MAX(O842,P842)","v":0},{"$f":"S842-B842","v":0},"",null,""]
[null,null,null,null,null,null,null,null,null,null,null,null,null,null,null,null,null,null,0,0,{"$f":"IF(J843>0,60,\"\")","v":""},null,""]
[null,null,null,null,null,null,null,null,null,null,null,null,null,null,null,null,null,null,0,0,"",null,""]
[null,null,null,null,null,null,null,null,null,null,null,null,null,null,null,null,null,null,0,0,"",null,""]
[null,null,null,null,null,null,null,null,null,null,null,null,null,null,null,null,null,null,0,0,"",null,""]
[null,null,null,null,null,null,null,null,null,null,null,null,null,null,null,null,null,null,0,0,"",null,""]
[null,null,null,null,null,null,null,null,null,null,null,null,null,null,null,null,null,null,0,0,"",null,""]
[null,null,null,null,null,null,null,null,null,null,null,null,null,null,null,null,null,null,0,0,"",null,""]
[null,null,null,null,null,null,null,null,null,null,null,null,null,null,null,null,null,null,0,0,"",null,""]
[null,null,null,null,null,null,null,null,null,null,null,null,null,null,null,null,null,null,0,0,"",null,""]
[null,null,null,null,null,null,null,null,null,null,null,null,null,null,null,null,null,null,0,0,"",null,""]
[null,null,null,null,null,null,null,null,null,null,null,null,null,null,null,null,null,null,0,0,"",null,""]
[null,null,null,null,null,null,null,null,null,null,null,null,null,null,null,null,null,null,0,0,"",null,""]
[null,null,null,null,null,null,null,null,null,null,null,null,null,null,null,null,null,null,0,0,"",null,""]
[null,null,null,null,null,null,null,null,null,null,null,null,null,null,null,null,null,null,0,0,"",null,""]
[null,null,null,null,null,null,null,null,null,null,null,null,null,null,null,null,null,null,0,0,"",null,""]
[null,null,null,null,null,null,null,null,null,null,null,null,null,null,null,null,null,null,0,0,"",null,""]
[null,null,null,null,null,null,null,null,null,null,null,null,null,null,null,null,null,null,0,0,"",null,""]
[null,null,null,null,null,null,null,null,null,null,null,null,null,null,null,null,null,null,0,0,"",null,""]
[null,null,null,null,null,null,null,null,null,null,null,null,null,null,null,null,null,null,0,0,"",null,""]
[null,null,null,null,null,null,null,null,null,null,null,null,null,null,null,null,null,null,0,0,"",null,""]
[null,null,null,null,null,null,null,null,null,null,null,null,null,null,null,null,null,null,0,0,"",null,""]
[null,null,null,null,null,null,null,null,null,null,null,null,null,null,null,null,null,null,0,0,"",null,""]
[null,null,null,null,null,null,null,null,null,null,null,null,null,null,null,null,null,null,0,0,"",null,""]
[null,null,null,null,null,null,null,null,null,null,null,null,null,null,null,null,null,null,0,0,"",null,""]
[null,null,null,null,null,null,null,null,null,null,null,null,null,null,null,null,null,null,0,0,"",null,""]
[null,null,null,null,null,null,null,null,null,null,null,null,null,null,null,null,null,null,0,0,"",null,""]
[null,null,null,null,null,null,null,null,null,null,null,null,null,null,null,null,null,null,0,0,"",null,""]
[null,null,null,null,null,null,null,null,null,null,null,null,null,null,null,null,null,null,0,0,"",null,""]
[null,null,null,null,null,null,null,null,null,null,null,null,null,null,null,null,null,null,0,0,"",null,""]
[null,null,null,null,null,null,null,null,null,null,null,null,null,null,null,null,null,null,0,0,"",null,""]
[null,null,null,null,null,null,null,null,null,null,null,null,null,null,null,null,null,null,0,0,"",null,""]
[null,null,null,null,null,null,null,null,null,null,null,null,null,null,null,null,null,null,0,0,"",null,""]
[null,null,null,null,null,null,null,null,null,null,null,null,null,null,null,null,null,null,0,0,"",null,""]
[null,null,null,null,null,null,null,null,null,null,null,null,null,null,null,null,null,null,0,0,"",null,""]
[null,null,null,null,null,null,null,null,null,null,null,null,null,null,null,null,null,null,0,0,"",null,""]
[null,null,null,null,null,null,null,null,null,null,null,null,null,null,null,null,null,null,0,0,"",null,""]
[null,null,null,null,null,null,null,null,null,null,null,null,null,null,null,null,null,null,0,0,"",null,""]
[null,null,null,null,null,null,null,null,null,null,null,null,null,null,null,null,null,null,0,0,"",null,""]
[null,null,null,null,null,null,null,null,null,null,null,null,null,null,null,null,null,null,0,0,"",null,""]
[null,null,null,null,null,null,null,null,null,null,null,null,null,null,null,null,null,null,0,0,"",null,{"$f":"IF(OR(O882=60,P882>B882+4),60,\"\")","v":""}]
[null,null,null,null,null,null,null,null,null,null,null,null,null,null,null,null,null,null,0,0,"",null,""]
[null,null,null,null,null,null,null,null,null,null,null,null,null,null,null,null,null,null,0,0,"",null,""]
[null,null,null,null,null,null,null,null,null,null,null,null,null,null,null,null,null,null,0,0,"",null,""]
[null,null,null,null,null,null,null,null,null,null,null,null,null,null,null,null,null,null,0,0,"",null,""]
[null,null,null,null,null,null,null,null,null,null,null,null,null,null,null,null,null,null,0,0,"",null,""]
[null,null,null,null,null,null,null,null,null,null,null,null,null,null,null,null,null,null,0,0,"",null,""]
[null,null,null,null,null,null,null,null,null,null,null,null,null,null,null,null,null,null,0,0,"",null,""]
[null,null,null,null,null,null,null,null,null,null,null,null,null,null,null,null,null,null,0,0,"",null,""]
[null,null,null,null,null,null,null,null,null,null,null,null,null,null,null,null,null,null,0,0,"",null,""]
[null,null,null,null,null,null,null,null,null,null,null,null,null,null,null,null,null,null,0,0,"",null,""]
[null,null,null,null,null,null,null,null,null,null,null,null,null,null,null,null,null,null,0,0,"",null,""]
[null,null,null,null,null,null,null,null,null,null,null,null,null,null,null,null,null,null,0,0,"",null,""]
[null,null,null,null,null,null,null,null,null,null,null,null,null,null,null,null,null,null,0,0,"",null,""]
[null,null,null,null,null,null,null,null,null,null,null,null,null,null,null,null,null,null,0,0,"",null,""]
[null,null,null,null,null,null,null,null,null,null,null,null,null,null,null,null,null,null,0,0,"",null,""]
[null,null,null,null,null,null,null,null,null,null,null,null,null,null,null,null,null,null,0,0,"",null,""]
[null,null,null,null,null,null,null,null,null,null,null,null,null,null,null,null,null,null,0,0,"",null,""]
[null,null,null,null,null,null,null,null,null,null,null,null,null,null,null,null,null,null,0,0,"",null,""]
[null,null,null,null,null,null,null,null,null,null,null,null,null,null,null,null,null,null,0,0,"",null,""]
[null,null,null,null,null,null,null,null,null,null,null,null,null,null,null,null,null,null,0,0,"",null,""]
[null,null,null,null,null,null,null,null,null,null,null,null,null,null,null,null,null,null,0,0,"",null,""]
[null,null,null,null,null,null,null,null,null,null,null,null,null,null,null,null,null,null,0,0,"",null,""]
[null,null,null,null,null,null,null,null,null,null,null,null,null,null,null,null,null,null,0,0,"",null,""]
[null,null,null,null,null,null,null,null,null,null,null,null,null,null,null,null,null,null,{"$f":"MAX(O906,P906)","v":0},{"$f":"S906-B906","v":0},"",null,""]
[null,null,null,null,null,null,null,null,null,null,null,null,null,null,null,null,null,null,0,0,{"$f":"IF(J907>0,60,\"\")","v":""},null,""]
[null,null,null,null,null,null,null,null,null,null,null,null,null,null,null,null,null,null,0,0,"",null,""]
[null,null,null,null,null,null,null,null,null,null,null,null,null,null,null,null,null,null,0,0,"",null,""]
[null,null,null,null,null,null,null,null,null,null,null,null,null,null,null,null,null,null,0,0,"",null,""]
[null,null,null,null,null,null,null,null,null,null,null,null,null,null,null,null,null,null,0,0,"",null,""]
[null,null,null,null,null,null,null,null,null,null,null,null,null,null,null,null,null,null,0,0,"",null,""]
[null,null,null,null,null,null,null,null,null,null,null,null,null,null,null,null,null,null,0,0,"",null,""]
[null,null,null,null,null,null,null,null,null,null,null,null,null,null,null,null,null,null,0,0,"",null,""]
[null,null,null,null,null,null,null,null,null,null,null,null,null,null,null,null,null,null,0,0,"",null,""]
[null,null,null,null,null,null,null,null,null,null,null,null,null,null,null,null,null,null,0,0,"",null,""]
[null,null,null,null,null,null,null,null,null,null,null,null,null,null,null,null,null,null,0,0,"",null,""]
[null,null,null,null,null,null,null,null,null,null,null,null,null,null,null,null,null,null,0,0,"",null,""]
[null,null,null,null,null,null,null,null,null,null,null,null,null,null,null,null,null,null,0,0,"",null,""]
[null,null,null,null,null,null,null,null,null,null,null,null,null,null,null,null,null,null,0,0,"",null,""]
[null,null,null,null,null,null,null,null,null,null,null,null,null,null,null,null,null,null,0,0,"",null,""]
[null,null,null,null,null,null,null,null,null,null,null,null,null,null,null,null,null,null,0,0,"",null,""]
[null,null,null,null,null,null,null,null,null,null,null,null,null,null,null,null,null,null,0,0,"",null,""]
[null,null,null,null,null,null,null,null,null,null,null,null,null,null,null,null,null,null,0,0,"",null,""]
[null,null,null,null,null,null,null,null,null,null,null,null,null,null,null,null,null,null,0,0,"",null,""]
[null,null,null,null,null,null,null,null,null,null,null,null,null,null,null,null,null,null,0,0,"",null,""]
[null,null,null,null,null,null,null,null,null,null,null,null,null,null,null,null,null,null,0,0,"",null,""]
[null,null,null,null,null,null,null,null,null,null,null,null,null,null,null,null,null,null,0,0,"",null,""]
[null,null,null,null,null,null,null,null,null,null,null,null,null,null,null,null,null,null,0,0,"",null,""]
[null,null,null,null,null,null,null,null,null,null,null,null,null,null,null,null,null,null,0,0,"",null,""]
[null,null,null,null,null,null,null,null,null,null,null,null,null,null,null,null,null,null,0,0,"",null,""]
[null,null,null,null,null,null,null,null,null,null,null,null,null,null,null,null,null,null,0,0,"",null,""]
[null,null,null,null,null,null,null,null,null,null,null,null,null,null,null,null,null,null,0,0,"",null,""]
[null,null,null,null,null,null,null,null,null,null,null,null,null,null,null,null,null,null,0,0,"",null,""]
[null,null,null,null,null,null,null,null,null,null,null,null,null,null,null,null,null,null,0,0,"",null,""]
[null,null,null,null,null,null,null,null,null,null,null,null,null,null,null,null,null,null,0,0,"",null,""]
[null,null,null,null,null,null,null,null,null,null,null,null,null,null,null,null,null,null,0,0,"",null,""]
[null,null,null,null,null,null,null,null,null,null,null,null,null,null,null,null,null,null,0,0,"",null,""]
[null,null,null,null,null,null,null,null,null,null,null,null,null,null,null,null,null,null,0,0,"",null,""]
[null,null,null,null,null,null,null,null,null,null,null,null,null,null,null,null,null,null,0,0,"",null,""]
[null,null,null,null,null,null,null,null,null,null,null,null,null,null,null,null,null,null,0,0,"",null,""]
[null,null,null,null,null,null,null,null,null,null,null,null,null,null,null,null,null,null,0,0,"",null,""]
[null,null,null,null,null,null,null,null,null,null,null,null,null,null,null,null,null,null,0,0,"",null,""]
[null,null,null,null,null,null,null,null,null,null,null,null,null,null,null,null,null,null,0,0,"",null,""]
[null,null,null,null,null,null,null,null,null,null,null,null,null,null,null,null,null,null,0,0,"",null,""]
[null,null,null,null,null,null,null,null,null,null,null,null,null,null,null,null,null,null,0,0,"",null,{"$f":"IF(OR(O946=60,P946>B946+4),60,\"\")","v":""}]
[null,null,null,null,null,null,null,null,null,null,null,null,null,null,null,null,null,null,0,0,"",null,""]
[null,null,null,null,null,null,null,null,null,null,null,null,null,null,null,null,null,null,0,0,"",null,""]
[null,null,null,null,null,null,null,null,null,null,null,null,null,null,null,null,null,null,0,0,"",null,""]
[null,null,null,null,null,null,null,null,null,null,null,null,null,null,null,null,null,null,0,0,"",null,""]
[null,null,null,null,null,null,null,null,null,null,null,null,null,null,null,null,null,null,0,0,"",null,""]
[null,null,null,null,null,null,null,null,null,null,null,null,null,null,null,null,null,null,0,0,"",null,""]
[null,null,null,null,null,null,null,null,null,null,null,null,null,null,null,null,null,null,0,0,"",null,""]
[null,null,null,null,null,null,null,null,null,null,null,null,null,null,null,null,null,null,0,0,"",null,""]
[null,null,null,null,null,null,null,null,null,null,null,null,null,null,null,null,null,null,0,0,"",null,""]
[null,null,null,null,null,null,null,null,null,null,null,null,null,null,null,null,null,null,0,0,"",null,""]
[null,null,null,null,null,null,null,null,null,null,null,null,null,null,null,null,null,null,0,0,"",null,""]
[null,null,null,null,null,null,null,null,null,null,null,null,null,null,null,null,null,null,0,0,"",null,""]
[null,null,null,null,null,null,null,null,null,null,null,null,null,null,null,null,null,null,0,0,"",null,""]
[null,null,null,null,null,null,null,null,null,null,null,null,null,null,null,null,null,null,0,0,"",null,""]
[null,null,null,null,null,null,null,null,null,null,null,null,null,null,null,null,null,null,0,0,"",null,""]
[null,null,null,null,null,null,null,null,null,null,null,null,null,null,null,null,null,null,0,0,"",null,""]
[null,null,null,null,null,null,null,null,null,null,null,null,null,null,null,null,null,null,0,0,"",null,""]
[null,null,null,null,null,null,null,null,null,null,null,null,null,null,null,null,null,null,0,0,"",null,""]
[null,null,null,null,null,null,null,null,null,null,null,null,null,null,null,null,null,null,0,0,"",null,""]
[null,null,null,null,null,null,null,null,null,null,null,null,null,null,null,null,null,null,0,0,"",null,""]
[null,null,null,null,null,null,null,null,null,null,null,null,null,null,null,null,null,null,0,0,"",null,""]
[null,null,null,null,null,null,null,null,null,null,null,null,null,null,null,null,null,null,0,0,"",null,""]
[null,null,null,null,null,null,null,null,null,null,null,null,null,null,null,null,null,null,0,0,"",null,""]
[null,null,null,null,null,null,null,null,null,null,null,null,null,null,null,null,null,null,{"$f":"MAX(O970,P970)","v":0},{"$f":"S970-B970","v":0},"",null,""]
[null,null,null,null,null,null,null,null,null,null,null,null,null,null,null,null,null,null,0,0,{"$f":"IF(J971>0,60,\"\")","v":""},null,""]
[null,null,null,null,null,null,null,null,null,null,null,null,null,null,null,null,null,null,0,0,"",null,""]
[null,null,null,null,null,null,null,null,null,null,null,null,null,null,null,null,null,null,0,0,"",null,""]
[null,null,null,null,null,null,null,null,null,null,null,null,null,null,null,null,null,null,0,0,"",null,""]
[null,null,null,null,null,null,null,null,null,null,null,null,null,null,null,null,null,null,0,0,"",null,""]
[null,null,null,null,null,null,null,null,null,null,null,null,null,null,null,null,null,null,0,0,"",null,""]
[null,null,null,null,null,null,null,null,null,null,null,null,null,null,null,null,null,null,0,0,"",null,""]
[null,null,null,null,null,null,null,null,null,null,null,null,null,null,null,null,null,null,0,0,"",null,""]
[null,null,null,null,null,null,null,null,null,null,null,null,null,null,null,null,null,null,0,0,"",null,""]
[null,null,null,null,null,null,null,null,null,null,null,null,null,null,null,null,null,null,0,0,"",null,""]
[null,null,null,null,null,null,null,null,null,null,null,null,null,null,null,null,null,null,0,0,"",null,""]
[null,null,null,null,null,null,null,null,null,null,null,null,null,null,null,null,null,null,0,0,"",null,""]
[null,null,null,null,null,null,null,null,null,null,null,null,null,null,null,null,null,null,0,0,"",null,""]
[null,null,null,null,null,null,null,null,null,null,null,null,null,null,null,null,null,null,0,0,"",null,""]
[null,null,null,null,null,null,null,null,null,null,null,null,null,null,null,null,null,null,0,0,"",null,""]
[null,null,null,null,null,null,null,null,null,null,null,null,null,null,null,null,null,null,0,0,"",null,""]
[null,null,null,null,null,null,null,null,null,null,null,null,null,null,null,null,null,null,0,0,"",null,""]
[null,null,null,null,null,null,null,null,null,null,null,null,null,null,null,null,null,null,0,0,"",null,""]
[null,null,null,null,null,null,null,null,null,null,null,null,null,null,null,null,null,null,0,0,"",null,""]
[null,null,null,null,null,null,null,null,null,null,null,null,null,null,null,null,null,null,0,0,"",null,""]
[null,null,null,null,null,null,null,null,null,null,null,null,null,null,null,null,null,null,0,0,"",null,""]
[null,null,null,null,null,null,null,null,null,null,null,null,null,null,null,null,null,null,0,0,"",null,""]
[null,null,null,null,null,null,null,null,null,null,null,null,null,null,null,null,null,null,0,0,"",null,""]
[null,null,null,null,null,null,null,null,null,null,null,null,null,null,null,null,null,null,0,0,"",null,""]
[null,null,null,null,null,null,null,null,null,null,null,null,null,null,null,null,null,null,0,0,"",null,""]
[null,null,null,null,null,null,null,null,null,null,null,null,null,null,null,null,null,null,0,0,"",null,""]
[null,null,null,null,null,null,null,null,null,null,null,null,null,null,null,null,null,null,0,0,"",null,""]
[null,null,null,null,null,null,null,null,null,null,null,null,null,null,null,null,null,null,0,0,"",null,""]
[null,null,null,null,null,null,null,null,null,null,null,null,null,null,null,null,null,null,0,0,"",null,""]
[null,null,null,null,null,null,null,null,null,null,null,null,null,null,null,null,null,null,0,0,"",null,""]
[null,null,null,null,null,null,null,null,null,null,null,null,null,null,null,null,null,null,0,0,"",null,""]
[null,null,null,null,null,null,null,null,null,null,null,null,null,null,null,null,null,null,0,0,"",null,""]
[null,null,null,null,null,null,null,null,null,null,null,null,null,null,null,null,null,null,0,0,"",null,""]
[null,null,null,null,null,null,null,null,null,null,null,null,null,null,null,null,null,null,0,0,"",null,""]
[null,null,null,null,null,null,null,null,null,null,null,null,null,null,null,null,null,null,0,0,"",null,""]
[null,null,null,null,null,null,null,null,null,null,null,null,null,null,null,null,null,null,0,0,"",null,""]
[null,null,null,null,null,null,null,null,null,null,null,null,null,null,null,null,null,null,0,0,"",null,""]
[null,null,null,null,null,null,null,null,null,null,null,null,null,null,null,null,null,null,0,0,"",null,""]
[null,null,null,null,null,null,null,null,null,null,null,null,null,null,null,null,null,null,0,0,"",null,""]
[null,null,null,null,null,null,null,null,null,null,null,null,null,null,null,null,null,null,0,0,"",null,{"$f":"IF(OR(O1010=60,P1010>B1010+4),60,\"\")","v":""}]
[null,null,null,null,null,null,null,null,null,null,null,null,null,null,null,null,null,null,0,0,"",null,""]
[null,null,null,null,null,null,null,null,null,null,null,null,null,null,null,null,null,null,0,0,"",null,""]
[null,null,null,null,null,null,null,null,null,null,null,null,null,null,null,null,null,null,0,0,"",null,""]
[null,null,null,null,null,null,null,null,null,null,null,null,null,null,null,null,null,null,0,0,"",null,""]
[null,null,null,null,null,null,null,null,null,null,null,null,null,null,null,null,null,null,0,0,"",null,""]
[null,null,null,null,null,null,null,null,null,null,null,null,null,null,null,null,null,null,0,0,"",null,""]
[null,null,null,null,null,null,null,null,null,null,null,null,null,null,null,null,null,null,0,0,"",null,""]
[null,null,null,null,null,null,null,null,null,null,null,null,null,null,null,null,null,null,0,0,"",null,""]
[null,null,null,null,null,null,null,null,null,null,null,null,null,null,null,null,null,null,0,0,"",null,""]
[null,null,null,null,null,null,null,null,null,null,null,null,null,null,null,null,null,null,0,0,"",null,""]
[null,null,null,null,null,null,null,null,null,null,null,null,null,null,null,null,null,null,0,0,"",null,""]
[null,null,null,null,null,null,null,null,null,null,null,null,null,null,null,null,null,null,0,0,"",null,""]
[null,null,null,null,null,null,null,null,null,null,null,null,null,null,null,null,null,null,0,0,"",null,""]
[null,null,null,null,null,null,null,null,null,null,null,null,null,null,null,null,null,null,0,0,"",null,""]
[null,null,null,null,null,null,null,null,null,null,null,null,null,null,null,null,null,null,0,0,"",null,""]
[null,null,null,null,null,null,null,null,null,null,null,null,null,null,null,null,null,null,0,0,"",null,""]
[null,null,null,null,null,null,null,null,null,null,null,null,null,null,null,null,null,null,0,0,"",null,""]
[null,null,null,null,null,null,null,null,null,null,null,null,null,null,null,null,null,null,0,0,"",null,""]
[null,null,null,null,null,null,null,null,null,null,null,null,null,null,null,null,null,null,0,0,"",null,""]
[null,null,null,null,null,null,null,null,null,null,null,null,null,null,null,null,null,null,0,0,"",null,""]
[null,null,null,null,null,null,null,null,null,null,null,null,null,null,null,null,null,null,0,0,"",null,""]
[null,null,null,null,null,null,null,null,null,null,null,null,null,null,null,null,null,null,0,0,"",null,""]
[null,null,null,null,null,null,null,null,null,null,null,null,null,null,null,null,null,null,0,0,"",null,""]
[null,null,null,null,null,null,null,null,null,null,null,null,null,null,null,null,null,null,{"$f":"MAX(O1034,P1034)","v":0},{"$f":"S1034-B1034","v":0},"",null,""]
[null,null,null,null,null,null,null,null,null,null,null,null,null,null,null,null,null,null,0,0,{"$f":"IF(J1035>0,60,\"\")","v":""},null,""]
[null,null,null,null,null,null,null,null,null,null,null,null,null,null,null,null,null,null,0,0,"",null,""]
[null,null,null,null,null,null,null,null,null,null,null,null,null,null,null,null,null,null,0,0,"",null,""]
[null,null,null,null,null,null,null,null,null,null,null,null,null,null,null,null,null,null,0,0,"",null,""]
[null,null,null,null,null,null,null,null,null,null,null,null,null,null,null,null,null,null,0,0,"",null,""]
[null,null,null,null,null,null,null,null,null,null,null,null,null,null,null,null,null,null,0,0,"",null,""]
[null,null,null,null,null,null,null,null,null,null,null,null,null,null,null,null,null,null,0,0,"",null,""]
[null,null,null,null,null,null,null,null,null,null,null,null,null,null,null,null,null,null,0,0,"",null,""]
[null,null,null,null,null,null,null,null,null,null,null,null,null,null,null,null,null,null,0,0,"",null,""]
[null,null,null,null,null,null,null,null,null,null,null,null,null,null,null,null,null,null,0,0,"",null,""]
[null,null,null,null,null,null,null,null,null,null,null,null,null,null,null,null,null,null,0,0,"",null,""]
[null,null,null,null,null,null,null,null,null,null,null,null,null,null,null,null,null,null,0,0,"",null,""]
[null,null,null,null,null,null,null,null,null,null,null,null,null,null,null,null,null,null,0,0,"",null,""]
[null,null,null,null,null,null,null,null,null,null,null,null,null,null,null,null,null,null,0,0,"",null,""]
[null,null,null,null,null,null,null,null,null,null,null,null,null,null,null,null,null,null,0,0,"",null,""]
[null,null,null,null,null,null,null,null,null,null,null,null,null,null,null,null,null,null,0,0,"",null,""]
[null,null,null,null,null,null,null,null,null,null,null,null,null,null,null,null,null,null,0,0,"",null,""]
[null,null,null,null,null,null,null,null,null,null,null,null,null,null,null,null,null,null,0,0,"",null,""]
[null,null,null,null,null,null,null,null,null,null,null,null,null,null,null,null,null,null,0,0,"",null,""]
[null,null,null,null,null,null,null,null,null,null,null,null,null,null,null,null,null,null,0,0,"",null,""]
[null,null,null,null,null,null,null,null,null,null,null,null,null,null,null,null,null,null,0,0,"",null,""]
[null,null,null,null,null,null,null,null,null,null,null,null,null,null,null,null,null,null,0,0,"",null,""]
[null,null,null,null,null,null,null,null,null,null,null,null,null,null,null,null,null,null,0,0,"",null,""]
[null,null,null,null,null,null,null,null,null,null,null,null,null,null,null,null,null,null,0,0,"",null,""]
[null,null,null,null,null,null,null,null,null,null,null,null,null,null,null,null,null,null,0,0,"",null,""]
[null,null,null,null,null,null,null,null,null,null,null,null,null,null,null,null,null,null,0,0,"",null,""]
[null,null,null,null,null,null,null,null,null,null,null,null,null,null,null,null,null,null,0,0,"",null,""]
[null,null,null,null,null,null,null,null,null,null,null,null,null,null,null,null,null,null,0,0,"",null,""]
[null,null,null,null,null,null,null,null,null,null,null,null,null,null,null,null,null,null,0,0,"",null,""]
[null,null,null,null,null,null,null,null,null,null,null,null,null,null,null,null,null,null,0,0,"",null,""]
[null,null,null,null,null,null,null,null,null,null,null,null,null,null,null,null,null,null,0,0,"",null,""]
[null,null,null,null,null,null,null,null,null,null,null,null,null,null,null,null,null,null,0,0,"",null,""]
[null,null,null,null,null,null,null,null,null,null,null,null,null,null,null,null,null,null,0,0,"",null,""]
[null,null,null,null,null,null,null,null,null,null,null,null,null,null,null,null,null,null,0,0,"",null,""]
[null,null,null,null,null,null,null,null,null,null,null,null,null,null,null,null,null,null,0,0,"",null,""]
[null,null,null,null,null,null,null,null,null,null,null,null,null,null,null,null,null,null,0,0,"",null,""]
[null,null,null,null,null,null,null,null,null,null,null,null,null,null,null,null,null,null,0,0,"",null,""]
[null,null,null,null,null,null,null,null,null,null,null,null,null,null,null,null,null,null,0,0,"",null,""]
[null,null,null,null,null,null,null,null,null,null,null,null,null,null,null,null,null,null,0,0,"",null,""]
[null,null,null,null,null,null,null,null,null,null,null,null,null,null,null,null,null,null,0,0,"",null,{"$f":"IF(OR(O1074=60,P1074>B1074+4),60,\"\")","v":""}]
[null,null,null,null,null,null,null,null,null,null,null,null,null,null,null,null,null,null,0,0,"",null,""]
[null,null,null,null,null,null,null,null,null,null,null,null,null,null,null,null,null,null,0,0,"",null,""]
[null,null,null,null,null,null,null,null,null,null,null,null,null,null,null,null,null,null,0,0,"",null,""]
[null,null,null,null,null,null,null,null,null,null,null,null,null,null,null,null,null,null,0,0,"",null,""]
[null,null,null,null,null,null,null,null,null,null,null,null,null,null,null,null,null,null,0,0,"",null,""]
[null,null,null,null,null,null,null,null,null,null,null,null,null,null,null,null,null,null,0,0,"",null,""]
[null,null,null,null,null,null,null,null,null,null,null,null,null,null,null,null,null,null,0,0,"",null,""]
[null,null,null,null,null,null,null,null,null,null,null,null,null,null,null,null,null,null,0,0,"",null,""]
[null,null,null,null,null,null,null,null,null,null,null,null,null,null,null,null,null,null,0,0,"",null,""]
[null,null,null,null,null,null,null,null,null,null,null,null,null,null,null,null,null,null,0,0,"",null,""]
[null,null,null,null,null,null,null,null,null,null,null,null,null,null,null,null,null,null,0,0,"",null,""]
[null,null,null,null,null,null,null,null,null,null,null,null,null,null,null,null,null,null,0,0,"",null,""]
[null,null,null,null,null,null,null,null,null,null,null,null,null,null,null,null,null,null,0,0,"",null,""]
[null,null,null,null,null,null,null,null,null,null,null,null,null,null,null,null,null,null,0,0,"",null,""]
[null,null,null,null,null,null,null,null,null,null,null,null,null,null,null,null,null,null,0,0,"",null,""]
[null,null,null,null,null,null,null,null,null,null,null,null,null,null,null,null,null,null,0,0,"",null,""]
[null,null,null,null,null,null,null,null,null,null,null,null,null,null,null,null,null,null,0,0,"",null,""]
[null,null,null,null,null,null,null,null,null,null,null,null,null,null,null,null,null,null,0,0,"",null,""]
[null,null,null,null,null,null,null,null,null,null,null,null,null,null,null,null,null,null,0,0,"",null,""]
[null,null,null,null,null,null,null,null,null,null,null,null,null,null,null,null,null,null,0,0,"",null,""]
[null,null,null,null,null,null,null,null,null,null,null,null,null,null,null,null,null,null,0,0,"",null,""]
[null,null,null,null,null,null,null,null,null,null,null,null,null,null,null,null,null,null,0,0,"",null,""]
[null,null,null,null,null,null,null,null,null,null,null,null,null,null,null,null,null,null,0,0,"",null,""]
[null,null,null,null,null,null,null,null,null,null,null,null,null,null,null,null,null,null,{"$f":"MAX(O1098,P1098)","v":0},{"$f":"S1098-B1098","v":0},"",null,""]
[null,null,null,null,null,null,null,null,null,null,null,null,null,null,null,null,null,null,0,0,{"$f":"IF(J1099>0,60,\"\")","v":""},null,""]
[null,null,null,null,null,null,null,null,null,null,null,null,null,null,null,null,null,null,0,0,"",null,""]
[null,null,null,null,null,null,null,null,null,null,null,null,null,null,null,null,null,null,0,0,"",null,""]
[null,null,null,null,null,null,null,null,null,null,null,null,null,null,null,null,null,null,0,0,"",null,""]
[null,null,null,null,null,null,null,null,null,null,null,null,null,null,null,null,null,null,0,0,"",null,""]
[null,null,null,null,null,null,null,null,null,null,null,null,null,null,null,null,null,null,0,0,"",null,""]
[null,null,null,null,null,null,null,null,null,null,null,null,null,null,null,null,null,null,0,0,"",null,""]
[null,null,null,null,null,null,null,null,null,null,null,null,null,null,null,null,null,null,0,0,"",null,""]
[null,null,null,null,null,null,null,null,null,null,null,null,null,null,null,null,null,null,0,0,"",null,""]
[null,null,null,null,null,null,null,null,null,null,null,null,null,null,null,null,null,null,0,0,"",null,""]
[null,null,null,null,null,null,null,null,null,null,null,null,null,null,null,null,null,null,0,0,"",null,""]
[null,null,null,null,null,null,null,null,null,null,null,null,null,null,null,null,null,null,0,0,"",null,""]
[null,null,null,null,null,null,null,null,null,null,null,null,null,null,null,null,null,null,0,0,"",null,""]
[null,null,null,null,null,null,null,null,null,null,null,null,null,null,null,null,null,null,0,0,"",null,""]
[null,null,null,null,null,null,null,null,null,null,null,null,null,null,null,null,null,null,0,0,"",null,""]
[null,null,null,null,null,null,null,null,null,null,null,null,null,null,null,null,null,null,0,0,"",null,""]
[null,null,null,null,null,null,null,null,null,null,null,null,null,null,null,null,null,null,0,0,"",null,""]
[null,null,null,null,null,null,null,null,null,null,null,null,null,null,null,null,null,null,0,0,"",null,""]
[null,null,null,null,null,null,null,null,null,null,null,null,null,null,null,null,null,null,0,0,"",null,""]
[null,null,null,null,null,null,null,null,null,null,null,null,null,null,null,null,null,null,0,0,"",null,""]
[null,null,null,null,null,null,null,null,null,null,null,null,null,null,null,null,null,null,0,0,"",null,""]
[null,null,null,null,null,null,null,null,null,null,null,null,null,null,null,null,null,null,0,0,"",null,""]
[null,null,null,null,null,null,null,null,null,null,null,null,null,null,null,null,null,null,0,0,"",null,""]
[null,null,null,null,null,null,null,null,null,null,null,null,null,null,null,null,null,null,0,0,"",null,""]
[null,null,null,null,null,null,null,null,null,null,null,null,null,null,null,null,null,null,0,0,"",null,""]
[null,null,null,null,null,null,null,null,null,null,null,null,null,null,null,null,null,null,0,0,"",null,""]
[null,null,null,null,null,null,null,null,null,null,null,null,null,null,null,null,null,null,0,0,"",null,""]
[null,null,null,null,null,null,null,null,null,null,null,null,null,null,null,null,null,null,0,0,"",null,""]
[null,null,null,null,null,null,null,null,null,null,null,null,null,null,null,null,null,null,0,0,"",null,""]
[null,null,null,null,null,null,null,null,null,null,null,null,null,null,null,null,null,null,0,0,"",null,""]
[null,null,null,null,null,null,null,null,null,null,null,null,null,null,null,null,null,null,0,0,"",null,""]
[null,null,null,null,null,null,null,null,null,null,null,null,null,null,null,null,null,null,0,0,"",null,""]
[null,null,null,null,null,null,null,null,null,null,null,null,null,null,null,null,null,null,0,0,"",null,""]
[null,null,null,null,null,null,null,null,null,null,null,null,null,null,null,null,null,null,0,0,"",null,""]
[null,null,null,null,null,null,null,null,null,null,null,null,null,null,null,null,null,null,0,0,"",null,""]
[null,null,null,null,null,null,null,null,null,null,null,null,null,null,null,null,null,null,0,0,"",null,""]
[null,null,null,null,null,null,null,null,null,null,null,null,null,null,null,null,null,null,0,0,"",null,""]
[null,null,null,null,null,null,null,null,null,null,null,null,null,null,null,null,null,null,0,0,"",null,""]
[null,null,null,null,null,null,null,null,null,null,null,null,null,null,null,null,null,null,0,0,"",null,""]
[null,null,null,null,null,null,null,null,null,null,null,null,null,null,null,null,null,null,0,0,"",null,{"$f":"IF(OR(O1138=60,P1138>B1138+4),60,\"\")","v":""}]
[null,null,null,null,null,null,null,null,null,null,null,null,null,null,null,null,null,null,0,0,"",null,""]
[null,null,null,null,null,null,null,null,null,null,null,null,null,null,null,null,null,null,0,0,"",null,""]
[null,null,null,null,null,null,null,null,null,null,null,null,null,null,null,null,null,null,0,0,"",null,""]
[null,null,null,null,null,null,null,null,null,null,null,null,null,null,null,null,null,null,0,0,"",null,""]
[null,null,null,null,null,null,null,null,null,null,null,null,null,null,null,null,null,null,0,0,"",null,""]
[null,null,null,null,null,null,null,null,null,null,null,null,null,null,null,null,null,null,0,0,"",null,""]
[null,null,null,null,null,null,null,null,null,null,null,null,null,null,null,null,null,null,0,0,"",null,""]
[null,null,null,null,null,null,null,null,null,null,null,null,null,null,null,null,null,null,0,0,"",null,""]
[null,null,null,null,null,null,null,null,null,null,null,null,null,null,null,null,null,null,0,0,"",null,""]
[null,null,null,null,null,null,null,null,null,null,null,null,null,null,null,null,null,null,0,0,"",null,""]
[null,null,null,null,null,null,null,null,null,null,null,null,null,null,null,null,null,null,0,0,"",null,""]
[null,null,null,null,null,null,null,null,null,null,null,null,null,null,null,null,null,null,0,0,"",null,""]
[null,null,null,null,null,null,null,null,null,null,null,null,null,null,null,null,null,null,0,0,"",null,""]
[null,null,null,null,null,null,null,null,null,null,null,null,null,null,null,null,null,null,0,0,"",null,""]
[null,null,null,null,null,null,null,null,null,null,null,null,null,null,null,null,null,null,0,0,"",null,""]
[null,null,null,null,null,null,null,null,null,null,null,null,null,null,null,null,null,null,0,0,"",null,""]
[null,null,null,null,null,null,null,null,null,null,null,null,null,null,null,null,null,null,0,0,"",null,""]
[null,null,null,null,null,null,null,null,null,null,null,null,null,null,null,null,null,null,0,0,"",null,""]
[null,null,null,null,null,null,null,null,null,null,null,null,null,null,null,null,null,null,0,0,"",null,""]
[null,null,null,null,null,null,null,null,null,null,null,null,null,null,null,null,null,null,0,0,"",null,""]
[null,null,null,null,null,null,null,null,null,null,null,null,null,null,null,null,null,null,0,0,"",null,""]
[null,null,null,null,null,null,null,null,null,null,null,null,null,null,null,null,null,null,0,0,"",null,""]
[null,null,null,null,null,null,null,null,null,null,null,null,null,null,null,null,null,null,0,0,"",null,""]
[null,null,null,null,null,null,null,null,null,null,null,null,null,null,null,null,null,null,{"$f":"MAX(O1162,P1162)","v":0},{"$f":"S1162-B1162","v":0},"",null,""]
[null,null,null,null,null,null,null,null,null,null,null,null,null,null,null,null,null,null,0,0,{"$f":"IF(J1163>0,60,\"\")","v":""},null,""]
[null,null,null,null,null,null,null,null,null,null,null,null,null,null,null,null,null,null,0,0,"",null,""]
[null,null,null,null,null,null,null,null,null,null,null,null,null,null,null,null,null,null,0,0,"",null,""]
[null,null,null,null,null,null,null,null,null,null,null,null,null,null,null,null,null,null,0,0,"",null,""]
[null,null,null,null,null,null,null,null,null,null,null,null,null,null,null,null,null,null,0,0,"",null,""]
[null,null,null,null,null,null,null,null,null,null,null,null,null,null,null,null,null,null,0,0,"",null,""]
[null,null,null,null,null,null,null,null,null,null,null,null,null,null,null,null,null,null,0,0,"",null,""]
[null,null,null,null,null,null,null,null,null,null,null,null,null,null,null,null,null,null,0,0,"",null,""]
[null,null,null,null,null,null,null,null,null,null,null,null,null,null,null,null,null,null,0,0,"",null,""]
[null,null,null,null,null,null,null,null,null,null,null,null,null,null,null,null,null,null,0,0,"",null,""]
[null,null,null,null,null,null,null,null,null,null,null,null,null,null,null,null,null,null,0,0,"",null,""]
[null,null,null,null,null,null,null,null,null,null,null,null,null,null,null,null,null,null,0,0,"",null,""]
[null,null,null,null,null,null,null,null,null,null,null,null,null,null,null,null,null,null,0,0,"",null,""]
[null,null,null,null,null,null,null,null,null,null,null,null,null,null,null,null,null,null,0,0,"",null,""]
[null,null,null,null,null,null,null,null,null,null,null,null,null,null,null,null,null,null,0,0,"",null,""]
[null,null,null,null,null,null,null,null,null,null,null,null,null,null,null,null,null,null,0,0,"",null,""]
[null,null,null,null,null,null,null,null,null,null,null,null,null,null,null,null,null,null,0,0,"",null,""]
[null,null,null,null,null,null,null,null,null,null,null,null,null,null,null,null,null,null,0,0,"",null,""]
[null,null,null,null,null,null,null,null,null,null,null,null,null,null,null,null,null,null,0,0,"",null,""]
[null,null,null,null,null,null,null,null,null,null,null,null,null,null,null,null,null,null,0,0,"",null,""]
[null,null,null,null,null,null,null,null,null,null,null,null,null,null,null,null,null,null,0,0,"",null,""]
[null,null,null,null,null,null,null,null,null,null,null,null,null,null,null,null,null,null,0,0,"",null,""]
[null,null,null,null,null,null,null,null,null,null,null,null,null,null,null,null,null,null,0,0,"",null,""]
[null,null,null,null,null,null,null,null,null,null,null,null,null,null,null,null,null,null,0,0,"",null,""]
[null,null,null,null,null,null,null,null,null,null,null,null,null,null,null,null,null,null,0,0,"",null,""]
[null,null,null,null,null,null,null,null,null,null,null,null,null,null,null,null,null,null,0,0,"",null,""]
[null,null,null,null,null,null,null,null,null,null,null,null,null,null,null,null,null,null,0,0,"",null,""]
[null,null,null,null,null,null,null,null,null,null,null,null,null,null,null,null,null,null,0,0,"",null,""]
[null,null,null,null,null,null,null,null,null,null,null,null,null,null,null,null,null,null,0,0,"",null,""]
[null,null,null,null,null,null,null,null,null,null,null,null,null,null,null,null,null,null,0,0,"",null,""]
[null,null,null,null,null,null,null,null,null,null,null,null,null,null,null,null,null,null,0,0,"",null,""]
[null,null,null,null,null,null,null,null,null,null,null,null,null,null,null,null,null,null,0,0,"",null,""]
[null,null,null,null,null,null,null,null,null,null,null,null,null,null,null,null,null,null,0,0,"",null,""]
[null,null,null,null,null,null,null,null,null,null,null,null,null,null,null,null,null,null,0,0,"",null,""]
[null,null,null,null,null,null,null,null,null,null,null,null,null,null,null,null,null,null,0,0,"",null,""]
[null,null,null,null,null,null,null,null,null,null,null,null,null,null,null,null,null,null,0,0,"",null,""]
[null,null,null,null,null,null,null,null,null,null,null,null,null,null,null,null,null,null,0,0,"",null,""]
[null,null,null,null,null,null,null,null,null,null,null,null,null,null,null,null,null,null,0,0,"",null,""]
[null,null,null,null,null,null,null,null,null,null,null,null,null,null,null,null,null,null,0,0,"",null,""]
[null,null,null,null,null,null,null,null,null,null,null,null,null,null,null,null,null,null,0,0,"",null,{"$f":"IF(OR(O1202=60,P1202>B1202+4),60,\"\")","v":""}]
[null,null,null,null,null,null,null,null,null,null,null,null,null,null,null,null,null,null,0,0,"",null,""]
[null,null,null,null,null,null,null,null,null,null,null,null,null,null,null,null,null,null,0,0,"",null,""]
[null,null,null,null,null,null,null,null,null,null,null,null,null,null,null,null,null,null,0,0,"",null,""]
[null,null,null,null,null,null,null,null,null,null,null,null,null,null,null,null,null,null,0,0,"",null,""]
[null,null,null,null,null,null,null,null,null,null,null,null,null,null,null,null,null,null,0,0,"",null,""]
[null,null,null,null,null,null,null,null,null,null,null,null,null,null,null,null,null,null,0,0,"",null,""]
[null,null,null,null,null,null,null,null,null,null,null,null,null,null,null,null,null,null,0,0,"",null,""]
[null,null,null,null,null,null,null,null,null,null,null,null,null,null,null,null,null,null,0,0,"",null,""]
[null,null,null,null,null,null,null,null,null,null,null,null,null,null,null,null,null,null,0,0,"",null,""]
[null,null,null,null,null,null,null,null,null,null,null,null,null,null,null,null,null,null,0,0,"",null,""]
[null,null,null,null,null,null,null,null,null,null,null,null,null,null,null,null,null,null,0,0,"",null,""]
[null,null,null,null,null,null,null,null,null,null,null,null,null,null,null,null,null,null,0,0,"",null,""]
[null,null,null,null,null,null,null,null,null,null,null,null,null,null,null,null,null,null,0,0,"",null,""]
[null,null,null,null,null,null,null,null,null,null,null,null,null,null,null,null,null,null,0,0,"",null,""]
[null,null,null,null,null,null,null,null,null,null,null,null,null,null,null,null,null,null,0,0,"",null,""]
[null,null,null,null,null,null,null,null,null,null,null,null,null,null,null,null,null,null,0,0,"",null,""]
[null,null,null,null,null,null,null,null,null,null,null,null,null,null,null,null,null,null,0,0,"",null,""]
[null,null,null,null,null,null,null,null,null,null,null,null,null,null,null,null,null,null,0,0,"",null,""]
[null,null,null,null,null,null,null,null,null,null,null,null,null,null,null,null,null,null,0,0,"",null,""]
[null,null,null,null,null,null,null,null,null,null,null,null,null,null,null,null,null,null,0,0,"",null,""]
[null,null,null,null,null,null,null,null,null,null,null,null,null,null,null,null,null,null,0,0,"",null,""]
[null,null,null,null,null,null,null,null,null,null,null,null,null,null,null,null,null,null,0,0,"",null,""]
[null,null,null,null,null,null,null,null,null,null,null,null,null,null,null,null,null,null,0,0,"",null,""]
[null,null,null,null,null,null,null,null,null,null,null,null,null,null,null,null,null,null,{"$f":"MAX(O1226,P1226)","v":0},{"$f":"S1226-B1226","v":0},"",null,""]
[null,null,null,null,null,null,null,null,null,null,null,null,null,null,null,null,null,null,0,0,{"$f":"IF(J1227>0,60,\"\")","v":""},null,""]
[null,null,null,null,null,null,null,null,null,null,null,null,null,null,null,null,null,null,0,0,"",null,""]
[null,null,null,null,null,null,null,null,null,null,null,null,null,null,null,null,null,null,0,0,"",null,""]
[null,null,null,null,null,null,null,null,null,null,null,null,null,null,null,null,null,null,0,0,"",null,""]
[null,null,null,null,null,null,null,null,null,null,null,null,null,null,null,null,null,null,0,0,"",null,""]
[null,null,null,null,null,null,null,null,null,null,null,null,null,null,null,null,null,null,0,0,"",null,""]
[null,null,null,null,null,null,null,null,null,null,null,null,null,null,null,null,null,null,0,0,"",null,""]
[null,null,null,null,null,null,null,null,null,null,null,null,null,null,null,null,null,null,0,0,"",null,""]
[null,null,null,null,null,null,null,null,null,null,null,null,null,null,null,null,null,null,0,0,"",null,""]
[null,null,null,null,null,null,null,null,null,null,null,null,null,null,null,null,null,null,0,0,"",null,""]
[null,null,null,null,null,null,null,null,null,null,null,null,null,null,null,null,null,null,0,0,"",null,""]
[null,null,null,null,null,null,null,null,null,null,null,null,null,null,null,null,null,null,0,0,"",null,""]
[null,null,null,null,null,null,null,null,null,null,null,null,null,null,null,null,null,null,0,0,"",null,""]
[null,null,null,null,null,null,null,null,null,null,null,null,null,null,null,null,null,null,0,0,"",null,""]
[null,null,null,null,null,null,null,null,null,null,null,null,null,null,null,null,null,null,0,0,"",null,""]
[null,null,null,null,null,null,null,null,null,null,null,null,null,null,null,null,null,null,0,0,"",null,""]
[null,null,null,null,null,null,null,null,null,null,null,null,null,null,null,null,null,null,0,0,"",null,""]
[null,null,null,null,null,null,null,null,null,null,null,null,null,null,null,null,null,null,0,0,"",null,""]
[null,null,null,null,null,null,null,null,null,null,null,null,null,null,null,null,null,null,0,0,"",null,""]
[null,null,null,null,null,null,null,null,null,null,null,null,null,null,null,null,null,null,0,0,"",null,""]
[null,null,null,null,null,null,null,null,null,null,null,null,null,null,null,null,null,null,0,0,"",null,""]
[null,null,null,null,null,null,null,null,null,null,null,null,null,null,null,null,null,null,0,0,"",null,""]
[null,null,null,null,null,null,null,null,null,null,null,null,null,null,null,null,null,null,0,0,"",null,""]
[null,null,null,null,null,null,null,null,null,null,null,null,null,null,null,null,null,null,0,0,"",null,""]
[null,null,null,null,null,null,null,null,null,null,null,null,null,null,null,null,null,null,0,0,"",null,""]
[null,null,null,null,null,null,null,null,null,null,null,null,null,null,null,null,null,null,0,0,"",null,""]
[null,null,null,null,null,null,null,null,null,null,null,null,null,null,null,null,null,null,0,0,"",null,""]
[null,null,null,null,null,null,null,null,null,null,null,null,null,null,null,null,null,null,0,0,"",null,""]
[null,null,null,null,null,null,null,null,null,null,null,null,null,null,null,null,null,null,0,0,"",null,""]
[null,null,null,null,null,null,null,null,null,null,null,null,null,null,null,null,null,null,0,0,"",null,""]
[null,null,null,null,null,null,null,null,null,null,null,null,null,null,null,null,null,null,0,0,"",null,""]
[null,null,null,null,null,null,null,null,null,null,null,null,null,null,null,null,null,null,0,0,"",null,""]
[null,null,null,null,null,null,null,null,null,null,null,null,null,null,null,null,null,null,0,0,"",null,""]
[null,null,null,null,null,null,null,null,null,null,null,null,null,null,null,null,null,null,0,0,"",null,""]
[null,null,null,null,null,null,null,null,null,null,null,null,null,null,null,null,null,null,0,0,"",null,""]
[null,null,null,null,null,null,null,null,null,null,null,null,null,null,null,null,null,null,0,0,"",null,""]
[null,null,null,null,null,null,null,null,null,null,null,null,null,null,null,null,null,null,0,0,"",null,""]
[null,null,null,null,null,null,null,null,null,null,null,null,null,null,null,null,null,null,0,0,"",null,""]
[null,null,null,null,null,null,null,null,null,null,null,null,null,null,null,null,null,null,0,0,"",null,""]
[null,null,null,null,null,null,null,null,null,null,null,null,null,null,null,null,null,null,0,0,"",null,{"$f":"IF(OR(O1266=60,P1266>B1266+4),60,\"\")","v":""}]
[null,null,null,null,null,null,null,null,null,null,null,null,null,null,null,null,null,null,0,0,"",null,""]
[null,null,null,null,null,null,null,null,null,null,null,null,null,null,null,null,null,null,0,0,"",null,""]
[null,null,null,null,null,null,null,null,null,null,null,null,null,null,null,null,null,null,0,0,"",null,""]
[null,null,null,null,null,null,null,null,null,null,null,null,null,null,null,null,null,null,0,0,"",null,""]
[null,null,null,null,null,null,null,null,null,null,null,null,null,null,null,null,null,null,0,0,"",null,""]
[null,null,null,null,null,null,null,null,null,null,null,null,null,null,null,null,null,null,0,0,"",null,""]
[null,null,null,null,null,null,null,null,null,null,null,null,null,null,null,null,null,null,0,0,"",null,""]
[null,null,null,null,null,null,null,null,null,null,null,null,null,null,null,null,null,null,0,0,"",null,""]
[null,null,null,null,null,null,null,null,null,null,null,null,null,null,null,null,null,null,0,0,"",null,""]
[null,null,null,null,null,null,null,null,null,null,null,null,null,null,null,null,null,null,0,0,"",null,""]
[null,null,null,null,null,null,null,null,null,null,null,null,null,null,null,null,null,null,0,0,"",null,""]
[null,null,null,null,null,null,null,null,null,null,null,null,null,null,null,null,null,null,0,0,"",null,""]
[null,null,null,null,null,null,null,null,null,null,null,null,null,null,null,null,null,null,0,0,"",null,""]
[null,null,null,null,null,null,null,null,null,null,null,null,null,null,null,null,null,null,0,0,"",null,""]
[null,null,null,null,null,null,null,null,null,null,null,null,null,null,null,null,null,null,0,0,"",null,""]
[null,null,null,null,null,null,null,null,null,null,null,null,null,null,null,null,null,null,0,0,"",null,""]
[null,null,null,null,null,null,null,null,null,null,null,null,null,null,null,null,null,null,0,0,"",null,""]
[null,null,null,null,null,null,null,null,null,null,null,null,null,null,null,null,null,null,0,0,"",null,""]
[null,null,null,null,null,null,null,null,null,null,null,null,null,null,null,null,null,null,0,0,"",null,""]
[null,null,null,null,null,null,null,null,null,null,null,null,null,null,null,null,null,null,0,0,"",null,""]
[null,null,null,null,null,null,null,null,null,null,null,null,null,null,null,null,null,null,0,0,"",null,""]
[null,null,null,null,null,null,null,null,null,null,null,null,null,null,null,null,null,null,0,0,"",null,""]
[null,null,null,null,null,null,null,null,null,null,null,null,null,null,null,null,null,null,0,0,"",null,""]
[null,null,null,null,null,null,null,null,null,null,null,null,null,null,null,null,null,null,{"$f":"MAX(O1290,P1290)","v":0},{"$f":"S1290-B1290","v":0},"",null,""]
[null,null,null,null,null,null,null,null,null,null,null,null,null,null,null,null,null,null,0,0,{"$f":"IF(J1291>0,60,\"\")","v":""},null,""]
[null,null,null,null,null,null,null,null,null,null,null,null,null,null,null,null,null,null,0,0,"",null,""]
[null,null,null,null,null,null,null,null,null,null,null,null,null,null,null,null,null,null,0,0,"",null,""]
[null,null,null,null,null,null,null,null,null,null,null,null,null,null,null,null,null,null,0,0,"",null,""]
[null,null,null,null,null,null,null,null,null,null,null,null,null,null,null,null,null,null,0,0,"",null,""]
[null,null,null,null,null,null,null,null,null,null,null,null,null,null,null,null,null,null,0,0,"",null,""]
[null,null,null,null,null,null,null,null,null,null,null,null,null,null,null,null,null,null,0,0,"",null,""]
[null,null,null,null,null,null,null,null,null,null,null,null,null,null,null,null,null,null,0,0,"",null,""]
[null,null,null,null,null,null,null,null,null,null,null,null,null,null,null,null,null,null,0,0,"",null,""]
[null,null,null,null,null,null,null,null,null,null,null,null,null,null,null,null,null,null,0,0,"",null,""]
[null,null,null,null,null,null,null,null,null,null,null,null,null,null,null,null,null,null,0,0,"",null,""]
[null,null,null,null,null,null,null,null,null,null,null,null,null,null,null,null,null,null,0,0,"",null,""]
[null,null,null,null,null,null,null,null,null,null,null,null,null,null,null,null,null,null,0,0,"",null,""]
[null,null,null,null,null,null,null,null,null,null,null,null,null,null,null,null,null,null,0,0,"",null,""]
[null,null,null,null,null,null,null,null,null,null,null,null,null,null,null,null,null,null,0,0,"",null,""]
[null,null,null,null,null,null,null,null,null,null,null,null,null,null,null,null,null,null,0,0,"",null,""]
[null,null,null,null,null,null,null,null,null,null,null,null,null,null,null,null,null,null,0,0,"",null,""]
[null,null,null,null,null,null,null,null,null,null,null,null,null,null,null,null,null,null,0,0,"",null,""]
[null,null,null,null,null,null,null,null,null,null,null,null,null,null,null,null,null,null,0,0,"",null,""]
[null,null,null,null,null,null,null,null,null,null,null,null,null,null,null,null,null,null,0,0,"",null,""]
[null,null,null,null,null,null,null,null,null,null,null,null,null,null,null,null,null,null,0,0,"",null,""]
[null,null,null,null,null,null,null,null,null,null,null,null,null,null,null,null,null,null,0,0,"",null,""]
[null,null,null,null,null,null,null,null,null,null,null,null,null,null,null,null,null,null,0,0,"",null,""]
[null,null,null,null,null,null,null,null,null,null,null,null,null,null,null,null,null,null,0,0,"",null,""]
[null,null,null,null,null,null,null,null,null,null,null,null,null,null,null,null,null,null,0,0,"",null,""]
[null,null,null,null,null,null,null,null,null,null,null,null,null,null,null,null,null,null,0,0,"",null,""]
[null,null,null,null,null,null,null,null,null,null,null,null,null,null,null,null,null,null,0,0,"",null,""]
[null,null,null,null,null,null,null,null,null,null,null,null,null,null,null,null,null,null,0,0,"",null,""]
[null,null,null,null,null,null,null,null,null,null,null,null,null,null,null,null,null,null,0,0,"",null,""]
[null,null,null,null,null,null,null,null,null,null,null,null,null,null,null,null,null,null,0,0,"",null,""]
[null,null,null,null,null,null,null,null,null,null,null,null,null,null,null,null,null,null,0,0,"",null,""]
[null,null,null,null,null,null,null,null,null,null,null,null,null,null,null,null,null,null,0,0,"",null,""]
[null,null,null,null,null,null,null,null,null,null,null,null,null,null,null,null,null,null,0,0,"",null,""]
[null,null,null,null,null,null,null,null,null,null,null,null,null,null,null,null,null,null,0,0,"",null,""]
[null,null,null,null,null,null,null,null,null,null,null,null,null,null,null,null,null,null,0,0,"",null,""]
[null,null,null,null,null,null,null,null,null,null,null,null,null,null,null,null,null,null,0,0,"",null,""]
[null,null,null,null,null,null,null,null,null,null,null,null,null,null,null,null,null,null,0,0,"",null,""]
[null,null,null,null,null,null,null,null,null,null,null,null,null,null,null,null,null,null,0,0,"",null,""]
[null,null,null,null,null,null,null,null,null,null,null,null,null,null,null,null,null,null,0,0,"",null,""]
[null,null,null,null,null,null,null,null,null,null,null,null,null,null,null,null,null,null,0,0,"",null,{"$f":"IF(OR(O1330=60,P1330>B1330+4),60,\"\")","v":""}]
[null,null,null,null,null,null,null,null,null,null,null,null,null,null,null,null,null,null,0,0,"",null,""]
[null,null,null,null,null,null,null,null,null,null,null,null,null,null,null,null,null,null,0,0,"",null,""]
[null,null,null,null,null,null,null,null,null,null,null,null,null,null,null,null,null,null,0,0,"",null,""]
[null,null,null,null,null,null,null,null,null,null,null,null,null,null,null,null,null,null,0,0]
[]
[]
[]
[]
[]
[]
[]
[]
[]
[]
[]
[]
[]
[]
[]
[]
[]
[]
[]
[]
[]
[]
[]
[]
[]
[]
[]
[]
[]
[]
[]
[]
[]
[]
[]
[]
[]
[]
[]
[]
[]
[]
[]
[]
[]
[]
[]
[]
[]
[]
[]
[]
[]
[]
[]
[]
[]
[]
[]
[]
[]
[]
[]
[]
[]
[]
[]
[]
[]
[]
[]
[]
[]
[]
[]
[]
[]
[]
[]
[]
[]
[]
[]
[]
[]
[]
[]
[]
[]
[]
[]
[]
[]
[]
[]
[]
[]
[]
[]
[]
[]
[]
[]
[]
[]
[]
[]
[]
[]
[]
[]
[]
[]
[]
[]
[null,null,null,null,null,null,null,null,null,null,{"$f":"MAX(K9:K1448)","v":0},null,null,null,null,null,null,null,null,null,{"$f":"SUM($U$9:$U$1448)","v":0},null,{"$f":"SUM($W$9:$W$1448)","v":0}]

{"sheet":"Console","index":1,"n_rows":31,"n_cols":11,"rows_kept":31,"cut":false,"hidden":false,"merged":[]}
[null,null,"Marées",null,"https://marine.meteoconsult.fr/meteo-marine/horaires-maree-la-tranche-sur-mer-1083-0.php"]
[]
[null,null,null,null,null,null,"Marée haute","11h46"]
[null,null,null,null,"                       Températures                                   Lune                             Chaleur solaire= T°+2°                    Conditions                             Vent maxi",null,"Marée haute","-----"]
[]
[null,null,null,null,null,null,"Coeff",26]
[null,null,null,null,null,null,null,"--"]
[]
[null,null,null,null,null,null,"Marée basse","04h29"]
[null,null,null,null,null,null,"Marée basse","16h55"]
[null,null,null,null,null,null,null,null,null,null," "]
[]
[null,null,null,null,null,null,"T° de l'eau",11]
[null,null,null,null,"       Température ressentie"]
[null,null,null,null,"                                                                                Dernière mise à jour :",null,"Heures Soleil","07h25"]
[null,null,null,null,"                                                                                                                                                                                  Pluie",null,null,"19h05"]
[null,null,null,null,"                                               Heures des marées                                                                            Statistiques                                                Journée                       Mois                        Année"]
[]
[null,null,null,null,null,null,"T° extérieure",11.3,"Dernière donnée de la colonne B de la page \"Relevés\""]
[null,null,null,null,null,null,"T° ressentie",11.3,"Dernière donnée de la colonne D de la page \"Relevés\""]
[null,null,null,null,null,null,"Vent",25.6,"Dernière donnée de la colonne F de la page \"Relevés\""]
[]
[]
[null,null,null,null,null,null,"Pluie Année",78.5]
[]
[]
[]
[null,null,null,null,null,null,{"$f":"INDEX(A:A,COUNTA(A:A))","v":0}]
[]
[]
[null,null,null,null,{"$f":"NOW()","v":"2022-03-11T07:50:32.420"}]